Workbook

Sheet Cover
C7: LLOYDS BANKING GROUP plc
C8: 2014 HALF YEAR RESULTS
C12: 31 July 2014
C16: Excel Downloads of Relevant Tables

Sheet Index
B1: INDEX A FULL COPY OF THE 2014 HALF-YEAR NEWS RELEASE CAN BE FOUND AT: http://www.lloydsbankinggroup.com/investors/financial-performance/lloyds-banking-group/
B7: Consolidated income statement | D7: 2 | G7: Group impairment charge by division | J7: 41
B8: Balance sheet and key ratios | D8: 2 | G8: Group impaired loans and provisions - June 2014 | J8: 42
B9: Summary consolidated balance sheet | D9: 3 | G9: Group impaired loans and provisions - Dec 2013 | J9: 43
B10: Total underlying income | D10: 10 | G10: Retail - Credit Risk | J10: 45
B11: Total costs | D11: 11 | G11: LTVs across Retail Mortgage portfolios | J11: 46
B12: Impairment | D12: 12 | G12: Forbearance - UK retail lending | J12: 51
B13: Statutory profit | D13: 13 | G13: Forbearance - Commercial Banking | J13: 52
B14: Capital ratios and risk-weighted assets | D14: 16 | G14: Forbearance - Consumer Finance | J14: 53
B15: Funding and liquidity | D15: 17 | G15: Forbearance - secured retail lending - Ireland | J15: 54
B16: Segmental analysis - H1 2014 | D16: 19 | G16: Forbearance - unimpaired | J16: 55
B17: Segmental analysis - H1 2013 | D17: 20 | G17: Group funding position | J17: 57
B18: Segmental analysis - H2 2013 | D18: 21 | G18: Reconciliation of Group funding figure to the balance sheet | J18: 58
B19: Quarterly underlying basis | D19: 22 | G19: Analysis of 2014 total wholesale funding by residual maturity | J19: 58
B20: Retail | D20: 24 | G20: Analysis of 2014 term issuance | J20: 59
B21: Commercial Banking | D21: 26 | G21: Encumbered assets | J21: 59
B22: Consumer Finance | D22: 28 | G22: Liquidity portfolio | J22: 60
B23: Insurance | D23: 30-31 | G23: Capital resources | J23: 62
B24: Insurance - comparative tables | D24: 30-31 | G24: Movements in capital | J24: 63
B25: Run-off and Central Items | D25: 32 | G25: Risk-weighted assets | J25: 64
B26: Reconciliation between statutory and underlying basis | D26: 33 | G26: Risk-weighted assets - movement by key driver | J26: 65
B27: Banking net interest margin | D27: 34 | G27: Leverage ratio | J27: 67
B28: Volatility relating to the insurance business | D28: 34-35
B29: Number of employees | D29: 36
B30: TSB | D30: 36

Sheet 2
B1: UNDERLYING BASIS CONSOLIDATED INCOME STATEMENT
D5: Half-year to 30 June 2014 | F5: Half-year to 30 June 2013 | H5: Half-year to 31 Dec 2013
D6: £ million | F6: £ million | H6: £ million
B8: Net interest income | D8: 5804 | F8: 5206 | H8: 5679
B9: Other income | D9: 3448 | F9: 4258 | H9: 3662
B10: Total underlying income | D10: 9252 | F10: 9464 | H10: 9341
B11: Total costs | D11: -4675 | F11: -4749 | H11: -4886
B12: Impairment | D12: -758 | F12: -1813 | H12: -1191
B13: Underlying profit | D13: 3819 | F13: 2902 | H13: 3264
B15: Asset sales, liability management and volatile items | D15: -1567 | F15: 897 | H15: -1177
B16: Simplification and TSB costs | D16: -828 | F16: -786 | H16: -731
B17: Legacy items | D17: -1100 | F17: -575 | H17: -2880
B18: Other items | D18: 539 | F18: -304 | H18: -195
B19: Profit (loss) before tax – statutory | D19: 863 | F19: 2134 | H19: -1719
B20: Taxation | D20: -164 | F20: -556 | H20: -661
B21: Profit (loss) for the period | D21: 699 | F21: 1578 | H21: -2380
B23: Earnings (loss) per share1 | D23: 0.8p | F23: 2.2p | H23: (3.4)p
B25: Banking net interest margin | D25: 0.024 | F25: 0.0201 | H25: 0.0223
B26: Average interest-earning assets | D26: 488.7 | F26: 517 | H26: 504.9
B27: Cost:income ratio (excluding St. James's Place) | D27: 0.505 | F27: 0.527 | H27: 0.531
B28: Asset quality ratio | D28: 0.003 | F28: 0.0069 | H28: 0.0045
B29: Return on risk-weighted assets | D29: 0.029 | F29: 0.0195 | H29: 0.0234
B31: BALANCE SHEET AND KEY RATIOS
D33: At | F33: At
D34: 30 June | F34: 31 Dec | H34: Change
D35: 2014 | F35: 2013 | H35: %
B37: Loans and advances to customers2 | D37: 487.1 | F37: 495.2 | H37: -1.635702746
B38: Customer deposits3 | D38: 445.1 | F38: 438.3 | H38: 1.551448779
B39: Loan to deposit ratio | D39: 1.09 | F39: 1.13 | H39: (4)pp
B40: Total assets | D40: 843.9 | F40: 847 | H40: -0.3659976387
B41: Run-off assets | D41: 25.2 | F41: 33.3 | H41: -24.32432432
B42: Wholesale funding | D42: 119.5 | F42: 137.6 | H42: -13.15406977
B43: Wholesale funding <1 year maturity | D43: 41.5 | F43: 44.2 | H43: -6.108597285
B44: PRA transitional common equity tier 1 ratio4,5 | D44: 0.111 | F44: 0.103 | H44: 0.8pp
B45: PRA transitional total capital ratio4,5 | D45: 0.197 | F45: 0.188 | H45: 0.9pp
B46: Fully loaded risk-weighted assets5 | D46: 256.8 | F46: 271.9 | H46: -5.622932745
B47: Fully loaded common equity tier 1 ratio5 | D47: 0.111 | F47: 0.103 | H47: 0.8pp
B48: Fully loaded Basel III leverage ratio5,6 | D48: 0.045 | F48: 0.038 | H48: 0.7pp
B50: Net tangible assets per share | D50: 49.4 | F50: 48.5 | H50: 0.9p
A53: 1 | B53: Earnings per share has been calculated after recognising the coupon on the Additional Tier 1 securities.
A54: 2 | B54: Excludes reverse repos of £4.2 billion (31 December 2013: £0.1 billion).
A55: 3 | B55: Excludes repos of £nil (31 December 2013: £3.0 billion).
A56: 4 | B56: 31 December 2013 comparatives reflect PRA transitional rules as at 1 January 2014.
A57: 5 | B57: 31 December 2013 ratios and risk-weighted assets were reported on a pro forma basis and included the benefit of the sales of Heidelberger Leben, Scottish Widows Investment Partnership and the Group’s 50 per cent stake in Sainsbury’s Bank.
A58: 6 | B58: Estimated in accordance with January 2014 revised Basel III leverage ratio framework.

Sheet 3
B1: SUMMARY CONSOLIDATED BALANCE SHEET (UNAUDITED)
D3: At 30 June | F3: At 31 Dec
D4: 2014 | F4: 2013
B5: Assets | D5: £ million | F5: £ million
B7: Cash and balances at central banks | D7: 50845 | F7: 49915
B8: Trading and other financial assets at fair value through profit or loss | D8: 147187 | F8: 142683
B9: Derivative financial instruments | D9: 27241 | F9: 33125
B10: Loans and receivables:
B11: Loans and advances to customers | D11: 491345 | F11: 495281
B12: Loans and advances to banks | D12: 21589 | F12: 25365
B13: Debt securities | D13: 1266 | F13: 1355
D14: 514200 | F14: 522001
B15: Available-for-sale financial assets | D15: 50348 | F15: 43976
B16: Other assets | D16: 54119 | F16: 55330
B17: Total assets | D17: 843940 | F17: 847030
B19: Liabilities
B20: Deposits from banks | D20: 11851 | F20: 13982
B21: Customer deposits | D21: 445091 | F21: 441311
B22: Trading and other financial liabilities at fair value through profit or loss | D22: 63046 | F22: 43625
B23: Derivative financial instruments | D23: 25285 | F23: 30464
B24: Debt securities in issue | D24: 77729 | F24: 87102
B25: Liabilities arising from insurance and investment contracts | D25: 111958 | F25: 110758
B26: Subordinated liabilities | D26: 25675 | F26: 32312
B27: Other liabilities | D27: 37427 | F27: 48140
B28: Total liabilities | D28: 789062 | F28: 807694
B30: Shareholders' equity | D30: 39601 | F30: 38989
B31: Other equity instruments | D31: 5329 | F31: 0
B32: Non-controlling interests | D32: 948 | F32: 347
B33: Total equity | D33: 45878 | F33: 39336
B34: Total liabilities and equity | D34: 843940 | F34: 847030
A36: 1 | B36: Restated to reflect the implementation of IAS 19R and IFRS 10. See page ●.

Sheet 10
B1: GROUP FINANCE DIRECTOR’S REVIEW OF FINANCIAL PERFORMANCE (continued)
B3: Total underlying income
D5: Half-year to 30 June | F5: Half-year to 30 June | J5: Half-year to 31 Dec
D6: 2014 | F6: 2013 | H6: Change | I6: 2013 | L6: Change
D7: £ million | F7: £ million | H7: % | J7: £ million | L7: %
B8: Net interest income | D8: 5804 | F8: 5205 | H8: 11.50816523 | J8: 5679 | L8: 2.201091742
B9: Other income | D9: 3448 | F9: 3729 | H9: -7.535532314 | J9: 3530 | L9: -2.322946176
B10: Total underlying income excluding St. Jame's Place | D10: 9252 | F10: 8934 | H10: 3.559435863 | J10: 9209 | L10: 0.4669345206
B11: St. James’s Place | D11: 0 | F11: 530 | J11: 132
B12: Total underlying income | D12: 9252 | F12: 9464 | H12: -2.240067625 | J12: 9341 | L12: -0.9527887806
B14: Banking net interest margin | D14: 0.024 | F14: 0.0201 | H14: 39bp | J14: 0.0223 | L14: 17bp
B15: Average interest-earning banking assets | D15: 488.7 | F15: 517 | H15: -5.473887814 | J15: 504.9 | L15: -3.20855615
B16: Loan to deposit ratio | D16: 1.09 | F16: 1.17 | H16: (8)pp | J16: 1.13 | L16: (4)pp

Sheet 11-12
B1: GROUP FINANCE DIRECTOR’S REVIEW OF FINANCIAL PERFORMANCE (continued)
D3: Half-year to 30 June | F3: Half-year to 30 June | J3: Half-year to 31 Dec
D4: 2014 | F4: 2013 | H4: Change | J4: 2013 | L4: Change
B5: Total costs | D5: £ million | F5: £ million | H5: % | J5: £ million | L5: %
B7: Total costs | D7: 4675 | F7: 4749 | H7: 1.558222784 | J7: 4886 | L7: 4.318460909
B8: Cost:income ratio (excluding St. James's Place) | D8: 0.505 | F8: 0.527 | H8: (2.2)pp | J8: 0.531 | L8: (2.6)pp
B9: Cost:income ratio | D9: 0.505 | F9: 0.502 | H9: 0.3pp | J9: 0.523 | L9: (1.8)pp
B10: Simplification savings annual run-rate | D10: 1764 | F10: 1160 | H10: 52.06896552 | J10: 1457 | L10: 21.07069321
D15: Half-year to 30 June | F15: Half-year to 30 June | J15: Half-year to 31 Dec
D16: 2014 | F16: 2013 | H16: Change | J16: 2013 | L16: Change
B17: Impairment | D17: £ million | F17: £ million | H17: % | J17: £ million | L17: %
B19: Total impairment charge | D19: 758 | F19: 1813 | H19: 58.19084391 | J19: 1191 | L19: 36.35600336
B20: Asset quality ratio | D20: 0.003 | F20: 0.0069 | H20: (39)bp | J20: 0.0045 | L20: (15)bp
B21: Group impaired loans as a % of closing advances | D21: 0.05 | F21: 0.077 | H21: (2.7)pp | J21: 0.063 | L21: (1.3)pp
B22: Group provisions as a % of impaired loans | D22: 0.54 | F22: 0.511 | H22: 2.9pp | J22: 0.501 | L22: 3.9pp

Sheet 13
B1: GROUP FINANCE DIRECTOR’S REVIEW OF FINANCIAL PERFORMANCE (continued)
B3: Statutory profit
E5: Half-year to 30 June | G5: Half-year to 30 June | K5: Half-year to 31 Dec
E6: 2014 | G6: 2013 | I6: Change | K6: 2013 | M6: Change
E7: £ million | G7: £ million | I7: % | K7: £ million | M7: %
B9: Underlying profit | E9: 3819 | G9: 2902 | I9: 31.59889731 | K9: 3264 | M9: 17.00367647
B10: Asset sales and volatile items:
B11: Asset sales | E11: 94 | G11: 775 | K11: -675
B12: Liability management | E12: -1376 | G12: -97 | K12: -45
B13: Own debt volatility | E13: 225 | G13: -166 | K13: -55
B14: Other volatile items | E14: -73 | G14: -136 | K14: -321
B15: Volatility arising in insurance businesses | E15: -122 | G15: 485 | K15: 183
B16: Fair value unwind | E16: -315 | G16: 36 | K16: -264
E17: -1567 | G17: 897 | K17: -1177
B18: Simplification and Verde costs
C19: Simplification | E19: -519 | G19: -409 | K19: -421
C20: TSB costs | E20: -309 | G20: -377 | K20: -310
E21: -828 | G21: -786 | K21: -731
B22: Legacy items:
B23: Payment protection insurance provision | E23: -600 | G23: -500 | K23: -2550
B24: Other regulatory provisions | E24: -500 | G24: -75 | K24: -330
E25: -1100 | G25: -575 | K25: -2880
B26: Other items:
B27: Past service pensions credit | E27: 710 | G27: -104 | K27: 0
B28: Amortisation of purchased intangibles | E28: -171 | G28: -200 | K28: -195
E29: 539 | G29: -304 | K29: -195
B30: Profit (loss) before tax – statutory | E30: 863 | G30: 2134 | I30: -59.55951265 | K30: -1719
B31: Taxation | E31: -164 | G31: -556 | K31: -661
B32: Profit (loss) for the period | E32: 699 | G32: 1578 | I32: -55.70342205 | K32: -2380
B33: Earnings (loss) per share | E33: 0.8p | G33: 2.2p | I33: (1.4)p | K33: (3.4)p | M33: 4.2p

Sheet 16-17
B1: GROUP FINANCE DIRECTOR’S REVIEW OF FINANCIAL PERFORMANCE (continued)
B3: Risk-weighted assets and capital ratios
D4: At 30 June | F4: At 31 Dec | H4: Change
D5: 2014 | F5: 2013 | H5: %
B7: Fully loaded1
B8: Common equity tier 1 capital ratio | D8: 0.111 | F8: 0.103 | H8: 0.8pp
B9: Total capital ratio | D9: 0.168 | F9: 0.155 | H9: 1.3pp
B10: Basel III leverage ratio2 | D10: 0.045 | F10: 0.038 | H10: 0.7pp
B11: Risk-weighted assets | D11: 256.8 | F11: 271.9 | H11: -5.553512321
B13: Transitional1
B14: Common equity tier 1 capital ratio3 | D14: 0.111 | F14: 0.103 | H14: 0.8pp
B15: Tier 1 capital ratio3 | D15: 0.146 | F15: 0.117 | H15: 2.9pp
B16: Total capital ratio3 | D16: 0.197 | F16: 0.188 | H16: 0.9pp
B17: Risk-weighted assets3 | D17: 257.4 | F17: 272.6 | H17: -5.575935437
B19: Shareholders' equity | D19: 39.6 | F19: 39 | H19: 2
A21: 1 | B21: 31 December 2013 ratios and risk-weighted assets were reported on a pro forma basis and included the benefit of the sales of Heidelberger Leben, Scottish Widows Investment Partnership and the Group’s 50 per cent stake in Sainsbury’s Bank.
A22: 2 | B22: Estimated in accordance with January 2014 revised Basel III leverage ratio framework.
A23: 3 | B23: 31 December 2013 comparatives reflect PRA transitional rules as at 1 January 2014.
B26: Funding and liquidity
D27: At 30 June | F27: At 31 Dec | H27: Change
D28: 2014 | F28: 2013 | H28: %
B30: Loans and advances to customers1 | D30: 487.1 | F30: 495.2 | H30: -1.635702746
B31: Loans and advances to customers(excluding run-off)1 | D31: 465.8 | F31: 467.5 | H31: -0.3636363636
B32: Run-off assets | D32: 25.2 | F32: 33.3 | H32: -24.32432432
B33: Non-retail run-off assets | D33: 18 | F33: 25 | H33: -28
B34: Funded assets2 | D34: 505.6 | F34: 510.2 | H34: -0.9016072129
B35: Customer deposits3 | D35: 445.1 | F35: 438.3 | H35: 1.551448779
B36: Wholesale funding | D36: 119.5 | F36: 137.6 | H36: -13.15406977
B37: Wholesale funding <1 year maturity | D37: 41.5 | F37: 44.2 | H37: -6.108597285
B38: Of which money-market funding <1 year maturity4 | D38: 18.6 | F38: 21.3 | H38: -12.67605634
B39: Loan to deposit ratio | D39: 1.094360818 | F39: 1.129819758 | H39: (4)pp
B40: Primary liquid assets5 | D40: 92.3 | F40: 89.3 | H40: 3.359462486
A42: 1 | B42: Excludes reverse repos of £4.2 billion (31 December 2013: £0.1 billion).
A43: 2 | B43: A breakdown of funded assets is shown on page 57.
A44: 3 | B44: Excludes repos of £nil (31 December 2013: £3.0 billion).
A45: 4 | B45: Excludes balances relating to margins of £2.2 billion (31 December 2013: £2.3 billion) and settlement accounts of £1.5 billion (31 December 2013: £1.3 billion).
A46: 5 | B46: Including off-balance sheet liquid assets.

Sheet 19
B1: UNDERLYING BASIS SEGMENTAL ANALYSIS
D2: Retail | F2: Commercial Banking | H2: Consumer Finance | J2: Insurance | L2: Run-off and Central items | N2: TSB1 | P2: Group
B5: Half-year to 30 June 2014
D6: £m | F6: £m | H6: £m | J6: £m | L6: £m | N6: £m | P6: £m
B8: Net interest income | D8: 3493 | F8: 1234 | H8: 645 | J8: -64 | L8: 96 | N8: 400 | P8: 5804
B9: Other income | D9: 700 | F9: 984 | H9: 675 | J9: 854 | L9: 163 | N9: 72 | P9: 3448
B10: Total underlying income | D10: 4193 | F10: 2218 | H10: 1320 | J10: 790 | L10: 259 | N10: 472 | P10: 9252
B11: Total costs | D11: -2207 | F11: -1033 | H11: -708 | J11: -329 | L11: -203 | N11: -195 | P11: -4675
B12: Impairment | D12: -276 | F12: -29 | H12: -78 | J12: 0 | L12: -324 | N12: -51 | P12: -758
B13: Underlying profit (loss) | D13: 1710 | F13: 1156 | H13: 534 | J13: 461 | L13: -268 | N13: 226 | P13: 3819
B15: Banking net interest margin | D15: 0.0228 | F15: 0.0263 | H15: 0.0669 | P15: 0.024
B16: Asset quality ratio | D16: 0.0018 | F16: 0.0005 | H16: 0.0078 | P16: 0.003
B17: Return on risk-weighted assets | D17: 0.0482 | F17: 0.0196 | H17: 0.052 | P17: 0.029
B19: Key balance sheet items | D19: £bn | F19: £bn | H19: £bn | J19: £bn | L19: £bn | N19: £bn | P19: £bn
B20: At 31 Dec 2013
B22: Loans and advances to customers¹ | D22: 315.2 | F22: 104.7 | H22: 19.9 | L22: 24.7 | N22: 22.6 | P22: 487.1
B23: Customer deposits² | D23: 284.3 | F23: 117.2 | H23: 17.4 | L23: 2.5 | N23: 23.7 | P23: 445.1
B24: Total customer balances | D24: 599.5 | F24: 221.9 | H24: 37.3 | L24: 27.2 | N24: 46.3 | P24: 932.2
B26: Risk-weighted assets | D26: 70.8 | F26: 114 | H26: 21.5 | L26: 46.3 | N26: 4.8 | P26: 257.4
A30: 1 | B30: See note 5, page 36.
A31: 2 | B31: Risk-weighted assets under rules prevailing on 1 January 2014.

Sheet 20-21
B1: UNDERLYING BASIS SEGMENTAL ANALYSIS
D2: Retail | F2: Commercial Banking | H2: Consumer Finance | J2: Insurance | L2: Run-off and Central items | N2: TSB2 | P2: Group
B4: Half-year to 30 June 20131
D6: £m | F6: £m | H6: £m | J6: £m | L6: £m | N6: £m | P6: £m
B8: Net interest income | D8: 3036 | F8: 1009 | H8: 670 | J8: -49 | L8: 235 | N8: 305 | P8: 5206
B9: Other income | D9: 733 | F9: 1154 | H9: 681 | J9: 945 | L9: 657 | N9: 88 | P9: 4258
B10: Total underlying income | D10: 3769 | F10: 2163 | H10: 1351 | J10: 896 | L10: 892 | N10: 393 | P10: 9464
B11: Total costs | D11: -2007 | F11: -1024 | H11: -665 | J11: -337 | L11: -442 | N11: -274 | P11: -4749
B12: Impairment | D12: -462 | F12: -285 | H12: -177 | J12: 0 | L12: -830 | N12: -59 | P12: -1813
B13: Underlying profit (loss) | D13: 1300 | F13: 854 | H13: 509 | J13: 559 | L13: -380 | N13: 60 | P13: 2902
B15: Banking net interest margin | D15: 0.0197 | F15: 0.0216 | H15: 0.0704 | P15: 0.024
B16: Asset quality ratio | D16: 0.0029 | F16: 0.0055 | H16: 0.0184 | P16: 0.003
B17: Return on risk-weighted assets | D17: 0.0321 | F17: 0.0138 | H17: 0.0467 | P17: 0.029
B19: Key balance sheet items | D19: £bn | F19: £bn | H19: £bn | J19: £bn | L19: £bn | N19: £bn | P19: £bn
B20: At 30 June 2013
B22: Loans and advances to customers¹ | D22: 312.6 | F22: 104.5 | H22: 19 | L22: 43.6 | N22: 24.2 | P22: 503.9
B23: Customer deposits² | D23: 278.8 | F23: 105.9 | H23: 20.1 | L23: 2.8 | N23: 23 | P23: 430.6
B24: Total customer balances | D24: 591.4 | F24: 210.4 | H24: 39.1 | L24: 46.4 | N24: 47.2 | P24: 934.5
B26: Risk-weighted assets3 | D26: 79.5 | F26: 124.2 | H26: 22 | L26: 57.5 | N26: 5.5 | P26: 288.7
D29: Retail | F29: Commercial Banking | H29: Consumer Finance | J29: Insurance | L29: Run-off and Central items | N29: TSB2 | P29: Group
B31: Half-year to 31 December 20131
D33: £m | F33: £m | H33: £m | J33: £m | L33: £m | N33: £m | P33: £m
B35: Net interest income | D35: 3464 | F35: 1104 | H35: 663 | J35: -58 | L35: 196 | N35: 310 | P35: 5679
B36: Other income | D36: 702 | F36: 1105 | H36: 678 | J36: 919 | L36: 183 | N36: 75 | P36: 3662
B37: Total underlying income | D37: 4166 | F37: 2209 | H37: 1341 | J37: 861 | L37: 379 | N37: 385 | P37: 9341
B38: Total costs | D38: -2153 | F38: -1060 | H38: -719 | J38: -332 | L38: -333 | N38: -289 | P38: -4886
B39: Impairment | D39: -298 | F39: -113 | H39: -166 | J39: 0 | L39: -564 | N39: -50 | P39: -1191
B40: Underlying profit (loss) | D40: 1715 | F40: 1036 | H40: 456 | J40: 529 | L40: -518 | N40: 46 | P40: 3264
B42: Banking net interest margin | D42: 0.0222 | F42: 0.0226 | H42: 0.0684 | P42: 0.0223
B43: Asset quality ratio | D43: 0.0018 | F43: 0.0021 | H43: 0.0168 | P43: 0.0045
B44: Return on risk-weighted assets | D44: 0.0443 | F44: 0.0169 | H44: 0.043 | P44: 0.0234
B46: Key balance sheet items | D46: £bn | F46: £bn | H46: £bn | J46: £bn | L46: £bn | N46: £bn | P46: £bn
B47: At 31 Dec 2013
B49: Loans and advances to customers | D49: 314.3 | F49: 108 | H49: 19.1 | L49: 30.3 | N49: 23.5 | P49: 495.2
B50: Customer deposits | D50: 283.2 | F50: 110.5 | H50: 18.7 | L50: 2.8 | N50: 23.1 | P50: 438.3
B51: Total customer balances | D51: 597.5 | F51: 218.5 | H51: 37.8 | L51: 33.1 | N51: 46.6 | P51: 933.5
B53: Risk-weighted assets3 | D53: 73.1 | F53: 120.8 | H53: 20.1 | L53: 44.1 | N53: 5.8 | P53: 263.9
A56: 1 | B56: Segment information has been restated to reflect previously announced changes to the Group operating structure implemented from 1 January 2014.
A57: 2 | B57: See note 5, page 36.
A58: 3 | B58: Determined under rules prevailing on 31 December 2013

Sheet 22
B1: UNDERLYING BASIS - QUARTERLY INFORMATION
H3: Quarter ended 30 June 2014 | J3: Quarter ended 31 Mar 2014
H5: £m | J5: £m
B7: Net interest income | H7: 2993 | J7: 2811
B8: Other income | H8: 1730 | J8: 1718
B9: Total underlying income | H9: 4723 | J9: 4529
B10: Total underlying income excl. SJP | H10: 4723 | J10: 4529
B11: Total costs | H11: -2377 | J11: -2298
B12: Impairment | H12: -327 | J12: -431
B13: Underlying profit | H13: 2019 | J13: 1800
B14: Asset sales, liability management and volatile items | H14: -1687 | J14: 120
B15: Simplification and TSB costs | H15: -362 | J15: -466
B16: Legacy provisions | H16: -1100 | J16: 0
B17: Other statutory items | H17: 624 | J17: -85
B18: Statutory (loss) profit | H18: -506 | J18: 1369
B20: Banking net interest margin | H20: 0.0248 | J20: 0.0232
B21: Asset quality ratio | H21: 0.0026 | J21: 0.0035
B22: Return on risk-weighted assets | H22: 0.0309 | J22: 0.0271
B23: Cost:income ratio (excl. SJP) | H23: 0.5032818124 | J23: 0.5073967763
B24: Cost:income ratio | H24: 0.5032818124 | J24: 0.5073967763
D28: Quarter ended 31 Dec 2013 | F28: Quarter ended 30 Sept 2013 | H28: Quarter ended 30 June 2013 | J28: Quarter ended 31 Mar 2013
D30: £m | F30: £m | H30: £m | J30: £m
B32: Net interest income | D32: 2918 | F32: 2761 | H32: 2653 | J32: 2553
B33: Other income | D33: 1868 | F33: 1794 | H33: 1922 | J33: 2336
B34: Total underlying income | D34: 4786 | F34: 4555 | H34: 4575 | J34: 4889
B35: Total underlying income excl. SJP | D35: 4672 | F35: 4537 | H35: 4525 | J35: 4409
B36: Total costs | D36: -2525 | F36: -2361 | H36: -2341 | J36: -2408
B37: Impairment | D37: -521 | F37: -670 | H37: -811 | J37: -1002
B38: Underlying profit (loss) | D38: 1740 | F38: 1524 | H38: 1423 | J38: 1479
B39: Asset sales, liability management and volatile items | D39: -468 | F39: -709 | H39: -176 | J39: 1073
B40: Simplification and TSB costs | D40: -323 | F40: -408 | H40: -377 | J40: -409
B41: Legacy provisions | D41: -2130 | F41: -750 | H41: -575 | J41: 0
B42: Other statutory items | D42: -98 | F42: -97 | H42: -201 | J42: -103
B43: Statutory (loss) profit | D43: -1279 | F43: -440 | H43: 94 | J43: 2040
B45: Banking net interest margin | D45: 0.0229 | F45: 0.0217 | H45: 0.0206 | J45: 0.0196
B46: Asset quality ratio | D46: 0.004 | F46: 0.0051 | H46: 0.0057 | J46: 0.008
B47: Return on risk-weighted assets | D47: 0.0255 | F47: 0.0214 | H47: 0.0193 | J47: 0.0196
B48: Cost:income ratio (excl. SJP) | D48: 0.5404537671 | F48: 0.5203879215 | H48: 0.5173480663 | J48: 0.536
B49: Cost:income ratio | D49: 0.527580443 | F49: 0.5183315038 | H49: 0.5116939891 | J49: 0.4925342606

Sheet 24
B1: Retail
D3: Half-year to 30 June 2014 | F3: Half-year to 30 June 20131 | H3: Change | J3: Half-year to 31 Dec 20131 | L3: Change
D4: £m | F4: £m | H4: % | J4: £m | L4: %
B6: Net interest income | D6: 3493 | F6: 3036 | H6: 15.05270092 | J6: 3464 | L6: 0.837182448
B7: Other income | D7: 700 | F7: 733 | H7: -4.502046385 | J7: 702 | L7: -
B8: Total underlying income | D8: 4193 | F8: 3769 | H8: 11.24966835 | J8: 4166 | L8: 0.6481036966
B9: Total costs2 | D9: -2207 | F9: -2007 | H9: -9.965122073 | J9: -2153 | L9: -2.508128193
B10: Impairment | D10: -276 | F10: -462 | H10: 40.25974026 | J10: -298 | L10: 7.382550336
B11: Underlying profit | D11: 1710 | F11: 1300 | H11: 31.53846154 | J11: 1715 | L11: -
B13: Banking net interest margin | D13: 0.0228 | F13: 0.0197 | H13: 31bp | J13: 0.0222 | L13: 6bp
B14: Asset quality ratio | D14: 0.0018 | F14: 0.0029 | H14: (11)bp | J14: 0.0018 | L14: -
B15: Return on risk-weighted assets | D15: 0.0482 | F15: 0.0321 | H15: 161bp | J15: 0.0443 | L15: 39bp
H19: At | J19: At
H20: 30 June | J20: 31 Dec | L20: Change
H21: 2014 | J21: 20131 | L21: %
B22: Key balance sheet items | H22: £bn | J22: £bn
B24: Loans and advances to customers | H24: 315.2 | J24: 314.3 | L24: -
B25: Customer deposits | H25: 284.3 | J25: 283.2 | L25: -
B26: Total customer balances | H26: 599.5 | J26: 597.5 | L26: -
B28: Risk-weighted assets under rules prevailing on 1 January 2014 | H28: 70.8 | J28: 72.9 | L28: -2.880658436
B29: Risk-weighted assets under rules prevailing on 31 December 2013 | J29: 73.1
A31: 1 | B31: Restated to reflect previously announced changes to the Group operating structure implemented from 1 January 2014.
A32: 2 | B32: Includes costs that in 2013 were allocated to TSB but following separation have been charged to Retail. In 2013, the costs allocated to TSB were £105 million in the first half and £112 million in the second half.

Sheet 26
B1: Commercial Banking
D3: Half-year to 30 June 2014 | F3: Half-year to 30 June 20131 | H3: Change | J3: Half-year to 31 Dec 20131 | L3: Change
D4: £m | F4: £m | H4: % | J4: £m | L4: %
B6: Net interest income | D6: 1234 | F6: 1009 | H6: 22.29930624 | J6: 1104 | L6: 11.77536232
B7: Other income | D7: 984 | F7: 1154 | H7: -14.73136915 | J7: 1105 | L7: -10.95022624
B8: Total underlying income | D8: 2218 | F8: 2163 | H8: 2.542764679 | J8: 2209 | L8: -
B9: Total costs | D9: -1033 | F9: -1024 | H9: -0.87890625 | J9: -1060 | L9: 2.547169811
B10: Impairment | D10: -29 | F10: -285 | H10: 89.8245614 | J10: -113 | L10: 74.33628319
B11: Underlying profit | D11: 1156 | F11: 854 | H11: 35.36299766 | J11: 1036 | L11: 11.58301158
B13: Banking net interest margin | D13: 0.0263 | F13: 0.0216 | H13: 47bp | J13: 0.0226 | L13: 37bp
B14: Asset quality ratio | D14: 0.0005 | F14: 0.0055 | H14: (50)bp | J14: 0.0021 | L14: (16)bp
B15: Return on risk-weighted assets | D15: 0.0196 | F15: 0.0138 | H15: 58bp | J15: 0.0169 | L15: 27bp
H19: At | J19: At
H20: 30 June | J20: 31 Dec | L20: Change
H21: 2014 | J21: 20131 | L21: %
B22: Key balance sheet items | H22: £bn | J22: £bn
B24: Loans and advances to customers | H24: 104.7 | J24: 108 | L24: -3.055555556
B25: Debt securities and available-for-sale financial assets | H25: 1.7 | J25: 1.7 | L25: -
H26: 106.4 | J26: 109.7 | L26: -3.008204193
B28: Customer deposits | H28: 117.2 | J28: 110.5 | L28: 6.063348416
B29: Risk-weighted assets under rules prevailing on 1 January 2014 | H29: 114 | J29: 124 | L29: -8.064516129
B30: Risk-weighted assets under rules prevailing on 31 December 2013 | J30: 120.8
A33: 1 | B33: Restated to reflect previously announced changes to the Group operating structure implemented from 1 January 2014.

Sheet 28
B1: Consumer Finance
D3: Half-year to 30 June 2014 | F3: Half-year to 30 June 20131 | H3: Change | J3: Half-year to 31 Dec 20131 | L3: Change
D4: £m | F4: £m | H4: % | J4: £m | L4: %
B6: Net interest income | D6: 645 | F6: 670 | H6: -3.731343284 | J6: 663 | L6: -2.714932127
B7: Other income | D7: 675 | F7: 681 | H7: -0.8810572687 | J7: 678 | L7: -
B8: Total underlying income | D8: 1320 | F8: 1351 | H8: -2.294596595 | J8: 1341 | L8: -1.565995526
B9: Total costs | D9: -708 | F9: -665 | H9: -6.466165414 | J9: -719 | L9: 1.529902643
B10: Impairment | D10: -78 | F10: -177 | H10: 55.93220339 | J10: -166 | L10: 53.01204819
B11: Underlying profit | D11: 534 | F11: 509 | H11: 4.911591356 | J11: 456 | L11: 17.10526316
B13: Banking net interest margin | D13: 0.0669 | F13: 0.0704 | H13: (35)bp | J13: 0.0684 | L13: (15)bp
B14: Asset quality ratio | D14: 0.0078 | F14: 0.0184 | H14: (106)bp | J14: 0.0168 | L14: (90)bp
B15: Return on risk-weighted assets | D15: 0.052 | F15: 0.0467 | H15: 53bp | J15: 0.043 | L15: 90bp
H19: At | J19: At
H20: 30 June | J20: 31 Dec | L20: Change
H21: 2014 | J21: 20131 | L21: %
B22: Key balance sheet items | H22: £bn | J22: £bn
B24: Loans and advances to customers | H24: 19.9 | J24: 19.1 | L24: 4.188481675
B25: Customer deposits | H25: 17.4 | J25: 18.7 | L25: -6.951871658
B26: Operating lease assets | H26: 2.9 | J26: 2.8 | L26: 3.571428571
H27: 40.2 | J27: 40.6 | L27: -0.9852216749
B29: Risk-weighted assets under rules prevailing on 1 January 2014 | H29: 21.5 | J29: 20.1 | L29: 6.965174129
B30: Risk-weighted assets under rules prevailing on 31 December 2013 | J30: 20.1
A32: 1 | B32: Restated to reflect previously announced changes to the Group operating structure implemented from 1 January 2014.

Sheet 30-31
B1: Insurance
F3: Half-year to 30 June 2014 | H3: Half-year to 30 June 20131 | J3: Change | L3: Half-year to 31 Dec 20131 | N3: Change
F4: £m | H4: £m | J4: % | L4: £m | N4: %
B6: Net interest income | F6: -64 | H6: -49 | J6: -30.6122449 | L6: -58 | N6: -10.34482759
B7: Other income | F7: 1029 | H7: 1093 | J7: -5.855443733 | L7: 1127 | N7: -8.695652174
B8: Insurance claims | F8: -175 | H8: -148 | J8: -18.24324324 | L8: -208 | N8: 15.86538462
B9: Total underlying income | F9: 790 | H9: 896 | J9: -11.83035714 | L9: 861 | N9: -8.246225319
B10: Total costs | F10: -329 | H10: -337 | J10: 2.37388724 | L10: -332 | N10: 0.9036144578
B11: Underlying profit | F11: 461 | H11: 559 | J11: -17.5313059 | L11: 529 | N11: -12.85444234
B13: Operating cash generation | F13: 380 | H13: 377 | J13: 0.7957559682 | L13: 305 | N13: 24.59016393
B14: UK LP&I IFRS new business margin | F14: 0.015 | H14: 0.03 | J14: (1.5)pp | L14: 0.02 | N14: (0.5)pp
B15: UK LP&I sales (PVNBP)2 | F15: 4680 | H15: 5430 | J15: -13.8121547 | L15: 4504 | N15: 3.907637655
B16: General insurance total GWP | F16: 604 | H16: 665 | J16: -9.172932331 | L16: 642 | N16: -5.919003115
B17: General insurance combined ratio | F17: 0.8 | H17: 0.69 | J17: 11pp | L17: 0.77 | N17: 3pp
A19: 1 | B19: Restated to reflect previously announced changes to the Group operating structure implemented from 1 January 2014.
A20: 2 | B20: Present value of new business premiums.
B24: Profit by product group
D25: Half-year to 30 June 2014 | N25: Half-year to 30 June 2013 | P25: Half-year to 31 Dec 2013
D26: Pensions & investments | F26: Protection & retirement1 | H26: General Insurance | J26: Other2 | L26: Total | N26: Total | P26: Total
D27: £m | F27: £m | H27: £m | J27: £m | L27: £m | N27: £m | P27: £m
B28: New business income | D28: 107 | F28: 42 | H28: 0 | J28: 2 | L28: 151 | N28: 250 | P28: 173
B29: Existing bussiness income | D29: 324 | F29: 62 | H29: 0 | J29: 59 | L29: 445 | N29: 395 | P29: 412
B30: Assumption changes and experience variances | D30: -101 | F30: 102 | H30: 0 | J30: -6 | L30: -5 | N30: -2 | P30: 72
B31: General Insurance income net of claims | D31: 0 | F31: 0 | H31: 199 | J31: 0 | L31: 199 | N31: 253 | P31: 204
B32: Total underlying income | D32: 330 | F32: 206 | H32: 199 | J32: 55 | L32: 790 | N32: 896 | P32: 861
B33: Total costs | D33: -183 | F33: -65 | H33: -69 | J33: -12 | L33: -329 | N33: -337 | P33: -332
B34: Underlying profit | D34: 147 | F34: 141 | H34: 130 | J34: 43 | L34: 461 | N34: 559 | P34: 529
B36: Underlying profit 30 June 20133 | D36: 198 | F36: 186 | H36: 175 | J36: 0 | L36: 559
A39: 1 | B39: Retirement assumption changes and experience variances include the benefit of acquiring from Commercial Banking, £785 million of infrastructure and social housing loans during 2014; bringing total social housing, infrastructure and education loans acquired to £3.1 billion.
A40: 2 | B40: 'Other’ includes the results of the European business in addition to income from return on free assets, interest expense and certain provisions.
A41: 3 | B41: Full 2013 comparator tables for the profit and cash disclosures can be found on the Lloyds Banking Group investor site.
B43: Operating cash generation
D44: Half-year to 30 June 2014 | N44: Half-year to 30 June 2013 | P44: Half-year to 31 Dec 2013
D45: Pensions & investments | F45: Protection & retirement | H45: General Insurance | J45: Other | L45: Total | N45: Total | P45: Total
D46: £m | F46: £m | H46: £m | J46: £m | L46: £m | N46: £m | P46: £m
B47: Cash invested in new business | D47: -123 | F47: -24 | H47: 0 | J47: -6 | L47: -153 | N47: -137 | P47: -133
B48: Cash generated from existing business | D48: 266 | F48: 60 | H48: 0 | J48: 77 | L48: 403 | N48: 339 | P48: 316
B49: Cash generated from General Insurance | D49: 0 | F49: 0 | H49: 130 | J49: 0 | L49: 130 | N49: 175 | P49: 122
B50: Operating cash generation | D50: 143 | F50: 36 | H50: 130 | J50: 71 | L50: 380 | N50: 377 | P50: 305
B51: Intangibles and other adjustments | D51: 4 | F51: 105 | H51: 0 | J51: -28 | L51: 81 | N51: 182 | P51: 224
B52: Underlying profit before tax | D52: 147 | F52: 141 | H52: 130 | J52: 43 | L52: 461 | N52: 559 | P52: 529
B54: Operating cash generation 30 June 2013 | D54: 119 | F54: 77 | H54: 175 | J54: 6 | L54: 377
B61: Insurance - Comparative Tables
B64: Profit by product group
D65: Half-year to 30 June 2013
D66: Pensions & investments | F66: Protection & retirement | H66: General Insurance | J66: Other | L66: Total
D67: £m | F67: £m | H67: £m | J67: £m | L67: £m
B68: New business income | D68: 166 | F68: 82 | H68: 0 | J68: 2 | L68: 250
B69: Existing bussiness income | D69: 294 | F69: 60 | H69: 0 | J69: 41 | L69: 395
B70: Assumption changes and experience variances | D70: -88 | F70: 118 | H70: 0 | J70: -32 | L70: -2
B71: General Insurance income net of claims | D71: 0 | F71: 0 | H71: 253 | J71: 0 | L71: 253
B72: Total underlying income | D72: 372 | F72: 260 | H72: 253 | J72: 11 | L72: 896
B73: Total costs | D73: -174 | F73: -74 | H73: -78 | J73: -11 | L73: -337
B74: Underlying profit half year 2013 | D74: 198 | F74: 186 | H74: 175 | J74: 0 | L74: 559
B80: Operating cash generation
D81: Half-year to 30 June 2013
D82: Pensions & investments | F82: Protection & retirement | H82: General Insurance | J82: Other | L82: Total
D83: £m | F83: £m | H83: £m | J83: £m | L83: £m
B84: Cash invested in new business | D84: -133 | F84: 2 | H84: 0 | J84: -6 | L84: -137
B85: Cash generated from existing business | D85: 252 | F85: 75 | H85: 0 | J85: 12 | L85: 339
B86: Cash generated from General Insurance | D86: 0 | F86: 0 | H86: 175 | J86: 0 | L86: 175
B87: Operating cash generation | D87: 119 | F87: 77 | H87: 175 | J87: 6 | L87: 377
B88: Intangibles and other adjustments | D88: 79 | F88: 109 | H88: - | J88: -6 | L88: 182
B89: Underlying profit half year 2013 | D89: 198 | F89: 186 | H89: 175 | J89: - | L89: 559

Sheet 32
B1: Run-off
D4: Half-year to 30 June 2014 | F4: Half-year to 30 June 20131 | H4: Change | J4: Half-year to 31 Dec 20131 | L4: Change
D5: £m | F5: £m | H5: % | J5: £m | L5: %
B7: Net interest income | D7: -67 | F7: 128 | J7: 10
B8: Other income | D8: 260 | F8: 896 | H8: -70.98214286 | J8: 370 | L8: -29.72972973
B9: Total underlying income | D9: 193 | F9: 1024 | H9: -81.15234375 | J9: 380 | L9: -49.21052632
B10: Total underlying income excl. SJP | D10: 193 | F10: 494 | H10: -60.93117409 | J10: 248 | L10: -22.17741935
B11: Total costs | D11: -169 | F11: -447 | H11: 62.19239374 | J11: -279 | L11: 39.4265233
B12: Impairment | D12: -324 | F12: -828 | H12: 60.86956522 | J12: -561 | L12: 42.2459893
B13: Underlying loss | D13: -300 | F13: -251 | H13: -19.52191235 | J13: -460 | L13: 34.7826087
B14: Underlying loss excl. SJP | D14: -300 | F14: -737 | H14: 59.29443691 | J14: -592 | L14: 49.32432432
H17: At | J17: At
B18: Key balance sheet items | H18: 30 June | J18: 31 Dec
H19: 2014 | J19: 20131 | L19: Change
H20: £bn | J20: £bn | L20: %
B22: Total assets | H22: 25.2 | J22: 33.3 | L22: -24.32432432
B23: Risk-weighted assets under rules prevailing on 1 January 2014 | H23: 24.2 | J23: 30.6 | L23: -20.91503268
B24: Risk-weighted assets under rules prevailing on 31 December 2013 | J24: 30.7
A27: 1 | B27: Restated to reflect previously announced changes to the Group operating structure implemented from 1 January 2014.
B29: Central Items
D30: Half-year to 30 June 2014
F31: Half-year to 30 June 20131 | H31: Half-year to 31 Dec 20131
D32: £m | F32: £m | H32: £m
B34: Total underlying income (expense) | D34: 66 | F34: -132 | H34: -1
B35: Total costs | D35: -34 | F35: 5 | H35: -54
B36: Impairment | D36: 0 | F36: -2 | H36: -3
B37: Underlying profit (loss) | D37: 32 | F37: -129 | H37: -58
A41: 1 | B41: Restated to reflect previously announced changes to the Group operating structure implemented from 1 January 2014.

Sheet 33
B1: Reconciliation between statutory and underlying basis results
E3: Removal of:
D4: Lloyds | H4: Volatility
B5: Half-year to 30 June 2014 | D5: Banking | F5: Acquisition | H5: relating to the | L5: Legal and
D6: Group | F6: related and | H6: insurance | J6: Insurance | L6: regulatory | N6: Fair value | P6: Underlying
D7: statutory | F7: other items1 | H7: business | J7: gross up | L7: provisions2 | N7: unwind | P7: basis
D8: £m | F8: £m | H8: £m | J8: £m | L8: £m | N8: £m | P8: £m
B10: Net interest income | D10: 5262 | F10: -10 | H10: 0 | J10: 239 | L10: 0 | N10: 313 | P10: 5804
B11: Other income, net of insurance claims | D11: 2434 | F11: 1135 | H11: 122 | J11: -314 | L11: 0 | N11: 71 | P11: 3448
B12: Total underlying income | D12: 7696 | F12: 1125 | H12: 122 | J12: -75 | L12: 0 | N12: 384 | P12: 9252
B13: Operating expenses3 | D13: -6192 | F13: 321 | H13: 0 | J13: 75 | L13: 1100 | N13: 21 | P13: -4675
B14: Impairment | D14: -641 | F14: -27 | H14: 0 | J14: 0 | L14: 0 | N14: -90 | P14: -758
B15: Profit (loss) | D15: 863 | F15: 1419 | H15: 122 | J15: 0 | L15: 1100 | N15: 315 | P15: 3819
E18: Removal of:
D19: Lloyds | H19: Volatility
B20: Half-year to 30 June 2013 | D20: Banking | F20: Acquisition | H20: relating to the | L20: Legal and
D21: Group | F21: related and | H21: insurance | J21: Insurance | L21: regulatory | N21: Fair value | P21: Underlying
D22: statutory | F22: other items4 | H22: business | J22: gross up | L22: provisions2 | N22: unwind | P22: basis
D23: £m | F23: £m | H23: £m | J23: £m | L23: £m | N23: £m | P23: £m
B25: Net interest income | D25: 3270 | F25: -12 | H25: -7 | J25: 1700 | L25: 0 | N25: 255 | P25: 5206
B26: Other income, net of insurance claims | D26: 7115 | F26: -558 | H26: -478 | J26: -1821 | L26: 0 | N26: 0 | P26: 4258
B27: Total underlying income | D27: 10385 | F27: -570 | H27: -485 | J27: -121 | L27: 0 | N27: 255 | P27: 9464
B28: Operating expenses3 | D28: -6568 | F28: 1090 | H28: 0 | J28: 121 | L28: 575 | N28: 33 | P28: -4749
B29: Impairment | D29: -1683 | F29: 194 | H29: 0 | J29: 0 | L29: 0 | N29: -324 | P29: -1813
B30: Profit (loss) | D30: 2134 | F30: 714 | H30: -485 | J30: 0 | L30: 575 | N30: -36 | P30: 2902
E33: Removal of:
D34: Lloyds | H34: Volatility
B35: Half-year to 31 December 2013 | D35: Banking | F35: Acquisition | H35: relating to the | L35: Legal and
D36: Group | F36: related and | H36: insurance | J36: Insurance | L36: regulatory | N36: Fair value | P36: Underlying
D37: statutory | F37: other items5 | H37: business | J37: gross up | L37: provisions2 | N37: unwind | P37: basis
D38: £m | F38: £m | H38: £m | J38: £m | L38: £m | N38: £m | P38: £m
B40: Net interest income | D40: 4068 | F40: -2 | H40: 7 | J40: 1230 | L40: 0 | N40: 376 | P40: 5679
B41: Other income, net of insurance claims | D41: 4025 | F41: 1018 | H41: -190 | J41: -1253 | L41: 0 | N41: 62 | P41: 3662
B42: Total underlying income | D42: 8093 | F42: 1016 | H42: -183 | J42: -23 | L42: 0 | N42: 438 | P42: 9341
B43: Operating expenses3 | D43: -8754 | F43: 951 | H43: 0 | J43: 23 | L43: 2880 | N43: 14 | P43: -4886
B44: Impairment | D44: -1058 | F44: 55 | H44: 0 | J44: 0 | L44: 0 | N44: -188 | P44: -1191
B45: Profit (loss) | D45: -1719 | F45: 2022 | H45: -183 | J45: 0 | L45: 2880 | N45: 264 | P45: 3264
A47: 1 | B47: Comprises the effects of asset sales (gain of £94 million), volatile items (gain of £152 million), liability management (loss of £1,376 million), Simplification costs related to severance, IT and business costs of implementation (£519 million), TSB costs (£309 million), the past service pensions credit (£710 million) and the amortisation of purchased intangibles (£171 million).
A48: 2 | B48: Comprises the payment protection insurance provision of £600 million (half-year to 30 June 2013: £500 million; half-year to 31 December 2013: £2,550 million) and other regulatory provisions of £500 million (half-year to 30 June 2013: £75 million; half-year to 31 December 2013: £330 million).
A49: 3 | B49: On an underlying basis, this is described as total costs.
A50: 4 | B50: Comprises the effects of asset sales (gain of £775 million), volatile items (loss of £302 million), liability management (loss of £97 million), Simplification costs related to severance, IT and business costs of implementation (£409 million), TSB costs (£377 million), the past service pensions charge (£104 million) and the amortisation of purchased intangibles (£200 million).
A51: 5 | B51: Comprises the effects of asset sales (loss of £675 million), volatile items (loss of £376 million), liability management (loss of £45 million), Simplification costs related to severance, IT and business costs of implementation (£421 million), TSB costs (£310 million) and the amortisation of purchased intangibles (£195 million).

Sheet 34-35
B1: Banking net interest margin
D3: Half-year to 30 June 2014 | F3: Half-year to 30 June 2013 | H3: Half-year to 31 Dec 2013
D4: £m | F4: £m | H4: £m
B6: Banking net interest income – underlying basis | D6: 5826 | F6: 5153 | H6: 5688
B7: Insurance division | D7: -64 | F7: -49 | H7: -58
B8: Other net interest income (including trading activity) | D8: 42 | F8: 102 | H8: 49
B9: Group net interest income – underlying basis | D9: 5804 | F9: 5206 | H9: 5679
B10: Fair value unwind | D10: -313 | F10: -255 | H10: -376
B11: Banking volatility and liability management gains | D11: 10 | F11: 12 | H11: 2
B12: Insurance gross up | D12: -239 | F12: -1700 | H12: -1230
B13: Volatility relating to the insurance business | D13: 0 | F13: 7 | H13: -7
B14: Group net interest income – statutory | D14: 5262 | F14: 3270 | H14: 4068
B17: Volatility relating to the insurance business
F19: Half-year to 30 June 2014 | H19: Half-year to 30 June 2013
F20: £m | H20: £m
B22: Insurance volatility | F22: -133 | H22: 58
B23: Policyholder interests volatility1 | F23: 43 | H23: 407
B24: Total volatility | F24: -90 | H24: 465
B25: Insurance hedging arrangements | F25: -32 | H25: 20
B26: Total | F26: -122 | H26: 485
A28: 1 | B28: 2013 includes volatility relating to the Group’s interest in St. James’s Place.
B31: Insurance volatility
B32: United Kingdom | F32: Half-year to 30 June 2014 | H32: Half-year to 30 June 2013
F33: % | H33: %
B35: Investments backing annuity liabilities | F35: 4.51 | H35: 3.76
B36: Equities and property | F36: 6.48 | H36: 5.58
B37: UK Government bonds | F37: 3.48 | H37: 2.58
B38: Corporate bonds | F38: 4.08 | H38: 3.18

Sheet 36
B1: Number of employees (full-time equivalent)
F2: At 30 June 2014 | H2: At 31 Dec 2013
F3: £m | H3: £m
B5: Retail | F5: 38066 | H5: 38845
B6: Commercial Banking | F6: 6691 | H6: 6787
B7: Consumer Finance | F7: 3494 | H7: 3404
B8: Insurance | F8: 2009 | H8: 2373
B9: Run-off and Central items | F9: 32429 | H9: 32766
B10: TSB | F10: 7571 | H10: 7140
F11: 90260 | H11: 91315
B12: Agency staff (full-time equivalent) | F12: -2602 | H12: -2338
B13: Interns/Scholars/Career Academies | F13: -304 | H13: -
B14: Total number of employees (full-time equivalent) | F14: 87354 | H14: 88977
B18: TSB | D18: Half-year to 30 June 2014 | F18: Half-year to 30 June 2013 | H18: Half-year to 31 Dec 2013
D19: £m | F19: £m | H19: £m
B21: On a Lloyds Banking Group reporting basis (underlying profit) | D21: 226 | F21: 60 | H21: 46
B22: Recognition of product transfers1 | D22: -9 | F22: -122 | H22: -78
B23: Cost allocation2 | D23: 0 | F23: 105 | H23: 112
B24: TSB dual running costs3 | D24: -138 | F24: 0 | H24: 0
B25: Volatile items4 | D25: -14 | F25: 0 | H25: -46
B26: Defined benefit pension scheme settlement gain5 | D26: 64 | F26: 0 | H26: 0
B27: FSCS levy adjustment6 | D27: 0 | F27: -3 | H27: 13
B28: Other | D28: 0 | F28: -4 | H28: 2
B29: Reported in the TSB results RNS | D29: 129 | F29: 36 | H29: 49
A34: 1 | B34: On the Lloyds Banking Group reporting basis, all product transfers to TSB are assumed to have occurred on 1 January 2013.
A35: 2 | B35: In 2013, TSB was allocated costs on the same basis as the other business segments. In 2014, costs have been charged to TSB in accordance with the Transitional Service Agreement and the costs that were previously allocated to TSB have been charged to the other business segments.
A36: 3 | B36: This represents corporate head office and similar costs incurred by TSB. The Group has excluded these from underlying profit to provide a more meaningful view of underlying business costs as they represent the duplicated costs of running two corporate head offices. These costs form part of the continuing TSB cost base and are reflected in the Group’s statutory profit before tax.
A37: 4 | B37: Banking volatility reported below underlying profit in the Lloyds Banking Group results.
A38: 5 | B38: Following the transfer of employees from employment with Lloyds Banking Group companies to TSB Bank, the defined benefit scheme assets and liabilities have been derecognised from the TSB Bank balance sheet and settled with nil cash consideration, resulting in a one off gain of £64 million. This is deconsolidated at Lloyds Banking Group level.
A39: 6 | B39: Adjustment to reflect the change in timing of the FSCS charge.

Sheet 41
B1: Group impairment charge by division
D4: Half-year to 30 June 2014 | F4: Half-year to 30 June 2013 | H4: Change since 30 June 2013 | J4: Half-year to 31 Dec 2013
B5: Group | D5: £m | F5: £m | H5: % | J5: £m
K6: =IF(IF(F6="",TRUE,IF(CODE(F6)=150,TRUE,FALSE)),"",VALUE(SUBSTITUTE(F6,CHAR(160),""))) -> 
B7: Retail: | L7: =IF(IF(E7="",TRUE,IF(CODE(E7)=150,TRUE,FALSE)),"",VALUE(SUBSTITUTE(E7,CHAR(160),""))) ->  | R7: =IF(IF(J7="",TRUE,IF(CODE(J7)=150,TRUE,FALSE)),"",VALUE(SUBSTITUTE(J7,CHAR(160),""))) -> 
B8: Secured | D8: 94 | F8: 188 | H8: 50 | J8: 61
B9: Loans and overdrafts | D9: 165 | F9: 253 | H9: 35 | J9: 225
B10: Other | D10: 17 | F10: 21 | H10: 19 | J10: 12
D11: =SUM(D8:D10) -> 276 | F11: =SUM(F8:F10) -> 462 | H11: 40 | J11: =SUM(J8:J10) -> 298
B12: Commercial Banking: | R12: =IF(IF(J12="",TRUE,IF(CODE(J12)=150,TRUE,FALSE)),"",VALUE(SUBSTITUTE(J12,CHAR(160),""))) -> 
B13: SME | D13: 5 | F13: 72 | H13: 93 | J13: 90
B14: Other | D14: 24 | F14: 213 | H14: 89 | J14: 23
D15: =SUM(D13:D14) -> 29 | F15: =SUM(F13:F14) -> 285 | H15: 90 | J15: =SUM(J13:J14) -> 113
B16: Consumer Finance:
B17: Credit Cards | D17: 69 | F17: 138 | H17: 50 | J17: 136
B18: Asset Finance | D18: 8 | F18: 32 | H18: 75 | J18: 20
B19: Netherlands | D19: 1 | F19: 7 | H19: 86 | J19: 10
D20: =SUM(D17:D19) -> 78 | F20: =SUM(F17:F19) -> 177 | H20: 56 | J20: =SUM(J17:J19) -> 166
B21: Run-off:
B22: Ireland retail | D22: 13 | F22: 21 | H22: 38 | J22: -47
B23: Ireland commerical real estate | D23: 56 | F23: 183 | H23: 69 | J23: 36
B24: Ireland corporate | D24: 182 | F24: 181 | H24: -1 | J24: 234
B25: Corporate real estate and other corporate | D25: 92 | F25: 317 | H25: 71 | J25: 205
B26: Specialist finance | D26: 30 | F26: 233 | H26: 87 | J26: 112
B27: Other | D27: -49 | F27: -107 | H27: -54 | J27: 21
D28: =SUM(D22:D27) -> 324 | F28: =SUM(F22:F27) -> 828 | H28: 61 | J28: =SUM(J22:J27) -> 561
B29: TSB | D29: 51 | F29: 59 | H29: 14 | J29: 50
B30: Central items | D30: 0 | F30: 2 | J30: 3
B31: Total impairment charge | D31: =SUM(D11,D15,D20,D28:D30) -> 758 | F31: =SUM(F11,F15,F20,F28:F30) -> 1813 | H31: 58 | J31: =SUM(J11,J15,J20,J28:J30) -> 1191
R32: =IF(IF(J32="",TRUE,IF(CODE(J32)=150,TRUE,FALSE)),"",VALUE(SUBSTITUTE(J32,CHAR(160),""))) -> 
B33: Impairment charge as a % of average advances | D33: 0.003 | F33: 0.0069 | J33: 0.0045
B35: Total impairment charge comprises:
D36: Half-year to 30 June 2014 | F36: Half-year to 30 June 2013 | H36: Change since 30 June 2013 | J36: Half-year to 31 Dec 2013
D37: £m | F37: £m | H37: % | J37: £m
B39: Loans and advances to customers | D39: 756 | F39: 1810 | H39: 58 | J39: 1178
B40: Debt securities classified as loans and receivables | D40: 0 | F40: 1 | J40: 0
B41: Available-for-sale financial assets | D41: 2 | F41: 2 | H41: 0 | J41: 13
B42: Total impairment charge | D42: =SUM(D39:D41) -> 758 | F42: =SUM(F39:F41) -> 1813 | H42: 58 | J42: =SUM(J39:J41) -> 1191

Sheet 42
B1: Group impaired loans and provisions
B4: At 30 June 2014 | D4: Loans and advances to customers | F4: Impaired loans | H4: Impaired loans as a % of closing advances | J4: Impairment provisions1 | L4: Impairment provisions as a % of impaired loans2
D5: £m | F5: £m | H5: % | J5: £m | L5: %
B7: Retail
B8: Secured | D8: 302930 | F8: 4699 | H8: 1.6 | J8: 1353 | L8: 28.8
B9: Loans and overdrafts | D9: 10425 | F9: 729 | H9: 7 | J9: 257 | L9: 86
B10: Other | D10: 4039 | F10: 337 | H10: 8.3 | J10: 67 | L10: 22
D11: =SUM(D8:D10) -> 317394 | F11: =SUM(F8:F10) -> 5765 | H11: 1.8 | J11: =SUM(J8:J10) -> 1677 | L11: 31.6
B12: Commercial Banking
B13: SME | D13: 27841 | F13: 1744 | H13: 6.3 | J13: 498 | L13: 28.6
B14: Other | D14: 78679 | F14: 2310 | H14: 2.9 | J14: 1315 | L14: 56.9
D15: =SUM(D13:D14) -> 106520 | F15: =SUM(F13:F14) -> 4054 | H15: 3.8 | J15: =SUM(J13:J14) -> 1813 | L15: 44.7
B16: Consumer Finance:
B17: Credit Cards | D17: 8834 | F17: 593 | H17: 6.7 | J17: 213 | L17: 93.8
B18: Asset Finance | D18: 6321 | F18: 177 | H18: 2.8 | J18: 111 | L18: 62.7
B19: Netherlands | D19: 5118 | F19: 81 | H19: 1.6 | J19: 37 | L19: 45.7
D20: =SUM(D17:D19) -> 20273 | F20: =SUM(F17:F19) -> 851 | H20: 4.2 | J20: =SUM(J17:J19) -> 361 | L20: 74.4
B21: Run-off:
B22: Ireland retail | D22: 5610 | F22: 930 | H22: 16.6 | J22: 617 | L22: 66.3
B23: Ireland commerical real estate | D23: 4365 | F23: 4128 | H23: 94.6 | J23: 3193 | L23: 77.3
B24: Ireland corporate | D24: 3385 | F24: 2970 | H24: 87.7 | J24: 2231 | L24: 75.1
B25: Corporate real estate and other corporate | D25: 7940 | F25: 5300 | H25: 66.8 | J25: 2611 | L25: 49.3
B26: Specialist finance | D26: 7113 | F26: 848 | H26: 11.9 | J26: 437 | L26: 51.5
B27: Other | D27: 2104 | F27: 351 | H27: 16.7 | J27: 257 | L27: 73.2
D28: =SUM(D22:D27) -> 30517 | F28: =SUM(F22:F27) -> 14527 | H28: 47.6 | J28: =SUM(J22:J27) -> 9346 | L28: 64.3
B29: TSB | D29: 22652 | F29: 216 | H29: 1 | J29: 90 | L29: 41.7
B30: Reverse repos and other items | D30: 7758
B31: Total gross lending | D31: =SUM(D11,D15,D20,D28,D29:D30) -> 505114 | F31: =SUM(F11,F15,F20,F28,F29:F30) -> 25413 | H31: 5 | J31: =SUM(J11,J15,J20,J28,J29:J30) -> 13287 | L31: 54
B32: Impairment provisions | D32: -13287
B33: Fair value adjustments3 | D33: -482
B34: Total Group | D34: =SUM(D31:D33) -> 491345
A36: 1 | B36: Impairment provisions include collective unimpaired provisions.
A37: 2 | B37: Impairment provisions as a percentage of impaired loans are calculated excluding Retail and Consumer Finance loans in recoveries
B38: (30 June 2014: £430 million in Retail loans and overdrafts, £32 million in Retail other and £366 million in Consumer Finance credit cards).
A39: 3 | B39: The fair value adjustments relating to loans and advances were those required to reflect the HBOS assets in the Group’s consolidated financial records at their fair value and took into account both the expected losses and market liquidity at the date of acquisition. The unwind relating to future impairment losses requires significant management judgement to determine its timing which includes an assessment of whether the losses incurred in the current period were expected at the date of the acquisition and assessing whether the remaining losses expected at the date of the acquisition will still be incurred. The element relating to market liquidity unwinds to the income statement over the estimated expected lives of the related assets (until 2014 for wholesale loans and 2018 for retail loans) although if an asset is written-off or suffers previously unexpected impairment then this element of the fair value will no longer be considered a timing difference (liquidity) but permanent (impairment). The fair value unwind in respect of impairment losses incurred was £90 million for the period ended 30 June 2014 (30 June 2013: £324 million). The fair value unwind in respect of loans and advances is expected to continue to decrease in future years as fixed-rate periods on mortgages expire, loans are repaid or written-off, and were reduced to zero over time.

Sheet 43
B1: Group impaired loans and provisions
B4: At 31 December 2013 | D4: Loans and advances to customers | F4: Impaired loans | H4: Impaired loans as a % of closing advances | J4: Impairment provisions1 | L4: Impairment provisions as a % of impaired loans2
D5: £m | F5: £m | H5: % | J5: £m | L5: %
B8: Retail
B9: Secured | D9: 302019 | F9: 5503 | H9: 1.8 | J9: 1447 | L9: 26.3
B10: Loans and overdrafts | D10: 10598 | F10: 819 | H10: 7.7 | J10: 285 | L10: 83.1
B11: Other | D11: 4148 | F11: 408 | H11: 9.8 | J11: 106 | L11: 28.3
D12: =SUM(D9:D11) -> 316765 | F12: =SUM(F9:F11) -> 6730 | H12: 2.1 | J12: =SUM(J9:J11) -> 1838 | L12: 29.5
B13: Commercial Banking
B14: SME | D14: 27268 | F14: 2194 | H14: 8 | J14: 623 | L14: 28.4
B15: Other | D15: 83111 | F15: 2853 | H15: 3.4 | J15: 1761 | L15: 61.7
D16: =SUM(D14:D15) -> 110379 | F16: =SUM(F14:F15) -> 5047 | H16: 4.6 | J16: =SUM(J14:J15) -> 2384 | L16: 47.2
B17: Consumer Finance:
B18: Credit Cards | D18: 9008 | F18: 639 | H18: 7.1 | J18: 226 | L18: 96.6
B19: Asset Finance | D19: 5061 | F19: 221 | H19: 4.4 | J19: 140 | L19: 63.3
B20: Netherlands | D20: 5478 | F20: 86 | H20: 1.6 | J20: 45 | L20: 52.3
D21: =SUM(D18:D20) -> 19547 | F21: =SUM(F18:F20) -> 946 | H21: 4.8 | J21: =SUM(J18:J20) -> 411 | L21: 76
B22: Run-off:
B23: Ireland retail | D23: 5944 | F23: 1002 | H23: 16.9 | J23: 638 | L23: 63.7
B24: Ireland commerical real estate | D24: 5512 | F24: 5087 | H24: 92.3 | J24: 3775 | L24: 74.2
B25: Ireland corporate | D25: 3918 | F25: 3235 | H25: 82.6 | J25: 2305 | L25: 71.3
B26: Corporate real estate and other corporate | D26: 11571 | F26: 8131 | H26: 70.3 | J26: 3320 | L26: 40.8
B27: Specialist finance | D27: 9017 | F27: 1368 | H27: 15.2 | J27: 565 | L27: 41.3
B28: Other | D28: 2519 | F28: 486 | H28: 19.3 | J28: 372 | L28: 76.5
D29: =SUM(D23:D28) -> 38481 | F29: =SUM(F23:F28) -> 19309 | H29: 50.2 | J29: =SUM(J23:J28) -> 10975 | L29: 56.8
B30: TSB | D30: 23553 | F30: 227 | H30: 1 | J30: 99 | L30: 43.6
B31: Reverse repos and other items | D31: 2779
B32: Total gross lending | D32: =SUM(D12,D16,D21,D29,D30:D31) -> 511504 | F32: =SUM(F12,F16,F21,F29,F30:F31) -> 32259 | H32: 6.3 | J32: =SUM(J12,J16,J21,J29,J30:J31) -> 15707 | L32: 50.1
B33: Impairment provisions | D33: -15707
B34: Fair value adjustments | D34: -516
B35: Total Group | D35: =SUM(D32:D34) -> 495281
A38: 1 | B38: Impairment provisions include collective unimpaired provisions.
A39: 2 | B39: Impairment provisions as a percentage of impaired loans are calculated excluding Retail and Consumer Finance loans in recoveries (31 December 2013: £476 million in Retail loans and overdrafts, £34 million in Retail other and £405 million in Consumer Finance credit cards).

Sheet 45
B1: CREDIT RISK PORTFOLIO (continued)
B3: Retail (continued)
P4: At | R4: At
B5: The Retail division's gross loans and advances to customers are analysed in the following table: | P5: 30 Jun | R5: 31 Dec 2013
P6: 2014
P7: £m | R7: £m
B9: Mainstream | P9: 228554 | R9: 228030 | AH9: =IF(IF(#REF!="",TRUE,IF(CODE(#REF!)=150,TRUE,FALSE)),"",VALUE(SUBSTITUTE(#REF!,CHAR(160),""))) ->  | AI9: =IF(IF(S9="",TRUE,IF(CODE(S9)=150,TRUE,FALSE)),"",VALUE(SUBSTITUTE(S9,CHAR(160),""))) -> 
B10: Buy to let | P10: 51656 | R10: 50346 | AH10: =IF(IF(#REF!="",TRUE,IF(CODE(#REF!)=150,TRUE,FALSE)),"",VALUE(SUBSTITUTE(#REF!,CHAR(160),""))) -> 
B11: Specialist1 | P11: 22720 | R11: 23643 | AH11: =IF(IF(#REF!="",TRUE,IF(CODE(#REF!)=150,TRUE,FALSE)),"",VALUE(SUBSTITUTE(#REF!,CHAR(160),""))) -> 
P12: =SUM(P9:P11) -> 302930 | R12: =SUM(R9:R11) -> 302019 | AH12: =IF(IF(#REF!="",TRUE,IF(CODE(#REF!)=150,TRUE,FALSE)),"",VALUE(SUBSTITUTE(#REF!,CHAR(160),""))) -> 
B14: Loans | P14: 8232 | R14: 8282 | AH14: =IF(IF(#REF!="",TRUE,IF(CODE(#REF!)=150,TRUE,FALSE)),"",VALUE(SUBSTITUTE(#REF!,CHAR(160),""))) -> 
B15: Overdrafts | P15: 2193 | R15: 2316 | AH15: =IF(IF(#REF!="",TRUE,IF(CODE(#REF!)=150,TRUE,FALSE)),"",VALUE(SUBSTITUTE(#REF!,CHAR(160),""))) -> 
B16: Wealth | P16: 3079 | R16: 3232 | AH16: =IF(IF(#REF!="",TRUE,IF(CODE(#REF!)=150,TRUE,FALSE)),"",VALUE(SUBSTITUTE(#REF!,CHAR(160),""))) -> 
B17: Retail Business Banking | P17: 960 | R17: 916 | AH17: =IF(IF(#REF!="",TRUE,IF(CODE(#REF!)=150,TRUE,FALSE)),"",VALUE(SUBSTITUTE(#REF!,CHAR(160),""))) -> 
P18: =SUM(P14:P17) -> 14464 | R18: =SUM(R14:R17) -> 14746
B20: Total | P20: =P12+P18 -> 317394 | R20: =R12+R18 -> 316765 | AH20: =IF(IF(#REF!="",TRUE,IF(CODE(#REF!)=150,TRUE,FALSE)),"",VALUE(SUBSTITUTE(#REF!,CHAR(160),""))) -> 
A22: 1 | B22: Specialist lending is closed to new business.
AH24: =IF(IF(R24="",TRUE,IF(CODE(R24)=150,TRUE,FALSE)),"",VALUE(SUBSTITUTE(R24,CHAR(160),""))) ->  | AI24: =IF(IF(S24="",TRUE,IF(CODE(S24)=150,TRUE,FALSE)),"",VALUE(SUBSTITUTE(S24,CHAR(160),""))) -> 
B25: Retail mortgages greater than three months in arrears (excluding repossessions)
D27: Number of cases | H27: Total mortgage accounts % | L27: Value of loans1 | P27: Total mortgage balances %
C28: June | F28: Dec | G28: June | J28: Dec | K28: June | N28: Dec | O28: June | R28: Dec
D29: 2014 | F29: 2013 | H29: 2014 | J29: 2013 | L29: 2014 | N29: 2013 | P29: 2014 | R29: 2013
D30: Cases | F30: Cases | H30: % | J30: % | L30: £m | N30: £m | P30: % | R30: %
B32: Mainstream | D32: 44308 | F32: 50437 | H32: 1.9 | J32: 2.2 | L32: 4906 | N32: 5683 | P32: 2.1 | R32: 2.5 | AH32: 2.5
B33: Buy to let | D33: 5759 | F33: 6250 | H33: 1.2 | J33: 1.4 | L33: 771 | N33: 859 | P33: 1.5 | R33: 1.7 | AH33: 1.7
B34: Specialist | D34: 10686 | F34: 11870 | H34: 6.8 | J34: 7.3 | L34: 1837 | N34: 2051 | P34: 8.1 | R34: 8.6 | AH34: 8.6
B35: Total | D35: =SUM(D32:D34) -> 60753 | F35: =SUM(F32:F34) -> 68557 | H35: 2.1 | J35: 2.3 | L35: =SUM(L32:L34) -> 7514 | N35: =SUM(N32:N34) -> 8593 | P35: 2.5 | R35: 2.8 | AH35: 2.8
A37: 1 | B37: Value of loans represents total book value of mortgages more than three months in arrears.

Sheet 46
B1: CREDIT RISK PORTFOLIO (continued)
B3: Retail (continued) | AH3: =IF(IF(R3="",TRUE,IF(CODE(R3)=150,TRUE,FALSE)),"",VALUE(SUBSTITUTE(R3,CHAR(160),""))) -> 
B5: Period end and average LTVs across the Retail mortgage portfolios
B7: At 30 June 2014 | L7: Mainstream | N7: Buy to let | P7: Specialist | R7: Total
L8: % | N8: % | P8: % | R8: %
B10: Less than 60% | L10: 41.8 | N10: 27.3 | P10: 26.2 | R10: 38.1
B11: 60% to 70% | L11: 19.6 | N11: 28.3 | P11: 19.2 | R11: 21.2
B12: 70% to 80% | L12: 19.3 | N12: 21.1 | P12: 20.4 | R12: 19.7
B13: 80% to 90% | L13: 11.9 | N13: 12.1 | P13: 17.2 | R13: 12.3
B14: 90% to 100% | L14: 4.7 | N14: 8.6 | P14: 10.3 | R14: 5.8
B15: Greater than 100% | L15: 2.7 | N15: 2.6 | P15: 6.7 | R15: 2.9
B16: Total | L16: =SUM(L10:L15) -> 100 | N16: =SUM(N10:N15) -> 100 | P16: =SUM(P10:P15) -> 100 | R16: =SUM(R10:R15) -> 100
B17: Average loan to value:1
B18: Stock of residential mortgages | L18: 47.3 | N18: 63.4 | P18: 61.8 | R18: 50.4
B19: New residential lending | L19: 64.5 | N19: 63.6 | P19: n/a | R19: 64.3
B20: Impaired mortgages | L20: 63 | N20: 84.8 | P20: 75.9 | R20: 67.9
B22: At 31 December 2013 | L22: Mainstream | N22: Buy to let | P22: Specialist | R22: Total
L23: % | N23: % | P23: % | R23: %
B25: Less than 60% | L25: 36.4 | N25: 19.1 | P25: 20.1 | R25: 32.3
B26: 60% to 70% | L26: 16.6 | N26: 20.7 | P26: 15.7 | R26: 17.2
B27: 70% to 80% | L27: 19.8 | N27: 26.5 | P27: 19.3 | R27: 20.9
B28: 80% to 90% | L28: 15.2 | N28: 15.7 | P28: 20.1 | R28: 15.6
B29: 90% to 100% | L29: 7.4 | N29: 11.6 | P29: 14.3 | R29: 8.6
B30: Greater than 100% | L30: 4.6 | N30: 6.4 | P30: 10.5 | R30: 5.4
B31: Total | L31: =SUM(L25:L30) -> 100 | N31: =SUM(N25:N30) -> 100 | P31: =SUM(P25:P30) -> 100 | R31: =SUM(R25:R30) -> 100
B32: Average loan to value:1
B33: Stock of residential mortgages | L33: 49.9 | N33: 67.9 | P33: 66.2 | R33: 53.3
B34: New residential lending | L34: 64 | N34: 64 | P34: n/a | R34: 64
B35: Impaired mortgages | L35: 67.2 | N35: 90.4 | P35: 80.8 | R35: 72.2
A37: 1 | B37: Average loan to value is calculated as total loans and advances as a percentage of the total collateral of these loans and advances

Sheet 51
B1: CREDIT RISK PORTFOLIO (continued)
B2: Forbearance
B4: Retail forbearance
B5: UK retail lending | D5: Total loans and advances which are currently or recently forborne | H5: Total current and recent forborne loans and advances which are impaired1 | L5: Impairment provisions as % of loans and advances which are currently or recently forborne
D8: At June | F8: At Dec | H8: At June | J8: At Dec | L8: At June | N8: At Dec
D9: 2014 | F9: 2013 | H9: 2014 | J9: 2013 | L9: 2014 | N9: 2013
D10: £m | F10: £m | H10: £m | J10: £m | L10: % | N10: %
B11: UK secured lending:
B12: Temporary forbearance arrangements
B13: Reduced contractual monthly payment2 | D13: 294 | F13: 957 | H13: 90 | J13: 221 | L13: 8 | N13: 4.1
B14: Reduced payment arrangements3 | D14: 1085 | F14: 1336 | H14: 166 | J14: 157 | L14: 2.7 | N14: 3.2
D15: =SUM(D13:D14) -> 1379 | F15: =SUM(F13:F14) -> 2293 | H15: =SUM(H13:H14) -> 256 | J15: =SUM(J13:J14) -> 378 | L15: 3.8 | N15: 3.6
B16: Permanent treatments
B17: Repair and term extensions4 | D17: 3858 | F17: 3860 | H17: 212 | J17: 296 | L17: 3.2 | N17: 3.4
B18: Total | D18: =D15+D17 -> 5237 | F18: =F15+F17 -> 6153 | H18: =H15+H17 -> 468 | J18: =J15+J17 -> 674 | L18: 3.3 | N18: 3.5
B20: UK unsecured lending:
B21: Loans and overdrafts5 | D21: 174 | F21: 191 | H21: 157 | J21: 169 | L21: 43.9 | N21: 45.8
A23: 1 | B23: £4,769 million of current and recent forborne secured loans and advances were not impaired at 30 June 2014 (31 December 2013: £5,479 million). £17 million of current and recent forborne loans and overdrafts were not impaired at 30 June 2014 (31 December: £22 million).
A24: 2 | B24: Includes temporary interest only arrangements and short-term payment holidays granted in collections where the customer is currently benefitting from the treatment and where the concession has ended within the previous six months (temporary interest only) and previous 12 months (short-term payment holidays).
A25: 3 | B25: Includes customers who had an arrangement to pay less than the contractual amount at 30 June 2014 or where an arrangement ended within the previous three months.
A26: 4 | B26: Includes capitalisation of arrears and term extensions which commenced during the previous 24 months and who remain as customers at 30 June 2014.
A27: 5 | B27: Includes temporary treatments where the customer is currently benefiting from the change or the treatment has ended within the previous six months. Permanent changes which commenced during the last 24 months for existing customers as at 30 June 2014 are also included.

Sheet 52
B1: CREDIT RISK PORTFOLIO (continued)
B3: Commercial Banking forbearance
F4: Direct Real Estate | H4: Other industry sector | J4: Total
B5: At 30 June 2014 | F5: £m | H5: £m | J5: £m
B7: Type of unimpaired forbearance
B8: UK1 exposures > £5 million
B9: Covenants | F9: 101 | H9: 1000 | J9: 1101
B10: Extensions | F10: 7 | H10: 316 | J10: 323
B11: Multiple | F11: - | H11: 272 | J11: 272
F12: =SUM(F9:F11) -> 108 | H12: =SUM(H9:H11) -> 1588 | J12: =SUM(J9:J11) -> 1696
B13: Exposures <£5 million and other non-UK1 | J13: 407
B14: Total | J14: =SUM(J12:J13) -> 2103
B17: At 31 December 2013
B19: Type of unimpaired forbearance:
B20: UK1 exposures > £5 million
B21: Covenants | F21: 527 | H21: 488 | J21: 1015
B22: Extensions | F22: 69 | H22: 254 | J22: 323
B23: Multiple | F23: - | H23: 316 | J23: 316
F24: =SUM(F21:F23) -> 596 | H24: =SUM(H21:H23) -> 1058 | J24: =SUM(J21:J23) -> 1654
B25: Exposures <£5 million and other non-UK1 | J25: 778
B26: Total | J26: =SUM(J24:J25) -> 2432
A28: 1 | B28: Based on location of the office recording the transaction.

Sheet 53
B1: CREDIT RISK PORTFOLIO (continued)
B2: Consumer Finance forbearance
B4: Analysis of the forborne loan balances
C5: Total loans and advances which are forborne | F5: Total forborne loans and advances which are impaired1 | I5: Impairment provisions as % of loans and advances which are forborne
C7: ="30 June" -> 30 June | D7: ="31 Dec" -> 31 Dec | F7: ="30 June" -> 30 June | G7: ="31 Dec" -> 31 Dec | I7: ="30 June" -> 30 June | J7: ="31 Dec" -> 31 Dec
C8: 2014 | D8: 2013 | F8: 2014 | G8: 2013 | I8: 2014 | J8: 2013
C9: £m | D9: £m | F9: £m | G9: £m | I9: % | J9: %
B11: Consumer Credit Cards2 | C11: 258 | D11: 326 | F11: 137 | G11: 188 | I11: 26.7 | J11: 21.9
B12: Asset Finance3 | C12: 81 | D12: 105 | F12: 65 | G12: 85 | I12: 24.1 | J12: 28.1
A15: 1 | B15: £137 million of forborne loans and advances (Consumer Credit Cards: £121 million, Asset Finance: £16 million) were not impaired at 30 June 2014 (31 December 2013: Consumer Credit Cards: £138 million, Asset Finance: £20 million).
A16: 2 | B16: Includes temporary treatments where the customer is currently benefitting from the change or the treatment has ended within the last six months. Permanent changes which commenced during the last 24 months for existing customers as at 30 June 2014 are also included.
A17: 3 | B17: Includes retail accounts that are currently on a forbearance treatment and capitalisation of arrears which commenced during the previous 12 months.

Sheet 54
B1: CREDIT RISK PORTFOLIO (continued)
B2: Run-off forbearance
B4: Secured retail lending - Ireland
C5: Total loans and advances which are currently or recently forborne | G5: Total forborne loans and advances which are impaired1 | K5: Impairment provisions as % of loans and advances which are currently or recently forborne
C7: ="30 June" -> 30 June | E7: ="31 Dec" -> 31 Dec | G7: ="30 June" -> 30 June | I7: ="31 Dec" -> 31 Dec | K7: ="30 June" -> 30 June | M7: ="31 Dec" -> 31 Dec
C8: 2014 | E8: 2013 | G8: 2014 | I8: 2013 | K8: 2014 | M8: 2013
B9: Ireland Secured lending: | C9: £m | E9: £m | G9: £m | I9: £m | K9: £m | M9: £m
B10: Temporary forbearance arrangements
B11: Reduced payment arrangements2 | C11: 223 | E11: 254 | G11: 203 | I11: 227 | K11: 50.3 | M11: 49.8
B12: Permanent treatments
B13: Repair and term extensions3 | C13: 445 | E13: 473 | G13: 85 | I13: 102 | K13: 15.5 | M13: 14.4
B14: Total | C14: =C11+C13 -> 668 | E14: =E11+E13 -> 727 | G14: =G11+G13 -> 288 | I14: =I11+I13 -> 329 | K14: 27.2 | M14: 26.7
A16: 1 | B16: £380 million of current and recent forborne loans and advances were not impaired at 30 June 2014 (31 December 2013: £398 million).
A17: 2 | B17: Includes customers who had an arrangement to pay less than the contractual amount at 30 June 2014 or where an arrangement ended within the previous three months.
A18: 3 | B18: Includes capitalisation of arrears and term extensions which commenced during the previous 24 months and remaining as customers at 30 June 2014.

Sheet 55
B1: Run-off forbearance (continued)
F3: Direct Real Estate | H3: Other industry sector | J3: Total
B4: At 30 June 2014 | F4: £m | H4: £m | J4: £m
B6: Type of unimpaired forbearance
B7: UK1 exposures > £5 million
B8: Covenants | F8: 11 | H8: 0 | J8: 11
B9: Extensions | F9: 0 | H9: 45 | J9: 45
B10: Multiple | F10: 24 | H10: 58 | J10: 82
F11: 35 | H11: 103 | J11: 138
B12: Exposures <£5 million and other non-UK1 | J12: 6
B13: Total | J13: 144
A15: 1 | B15: Based on location of the office recording the transaction.

Sheet 57
B1: FUNDING AND LIQUIDITY MANAGEMENT
D2: At | F2: At | H2: Change
B3: Group funding position | D3: 30 June | F3: 31 Dec
D4: 2014 | F4: 2013
D5: £bn | F5: £bn | H5: %
B7: Funding requirement
B8: Loans and advances to customers1 | D8: 487.1 | F8: 495.2 | H8: =((D8-F8)/F8)*100 -> -1.635702746 | K8: =IF(IF(E8="",TRUE,IF(CODE(E8)=150,TRUE,FALSE)),"",VALUE(SUBSTITUTE(E8,CHAR(160),""))) -> 
B9: Loans and advances to banks2 | D9: 3.9 | F9: 5.1 | H9: =((D9-F9)/F9)*100 -> -23.52941176
B10: Debt securities | D10: 1.3 | F10: 1.4 | H10: -7.142857143
B11: Reverse repurchase agreements | D11: 3.2 | F11: 0.2
B12: Available-for-sale financial assets – secondary3 | D12: 6.7 | F12: 4.4 | H12: 52.27272727
B13: Cash balances4 | D13: 3.4 | F13: 3.9 | H13: -12.82051282
B14: Funded assets | D14: =SUM(D8:D13) -> 505.6 | F14: =SUM(F8:F13) -> 510.2 | H14: -0.9016072129
B15: Other assets5 | D15: 249.3 | F15: 248.6 | H15: -
D16: =SUM(D14:D15) -> 754.9 | F16: =SUM(F14:F15) -> 758.8 | H16: -0.5139694254
B17: On balance sheet primary liquidity assets6
B18: Reverse repurchase agreements | D18: 3.6 | F18: 0.1
B19: Balances at central banks – primary4 | D19: 47.4 | F19: 46 | H19: 3.043478261
B20: Available-for-sale financial assets – primary | D20: 43.6 | F20: 39.6 | H20: 10.1010101
B21: Trading and fair value through profit and loss | D21: -5.6 | F21: 3.1
B22: Repurchase agreements | D22: 0 | F22: -0.6
D23: =SUM(D18:D22) -> 89 | F23: =SUM(F18:F22) -> 88.2 | H23: 0.9070294785
B24: Total Group assets | D24: =+D16+D23 -> 843.9 | F24: =+F16+F23 -> 847 | H24: - | K24: =IF(IF(E24="",TRUE,IF(CODE(E24)=150,TRUE,FALSE)),"",VALUE(SUBSTITUTE(E24,CHAR(160),""))) -> 
B25: Less: Other liabilities5 | D25: -232.3 | F25: -227.5 | H25: =((D25-F25)/F25)*-100 -> -2.10989011
B26: Funding requirement | D26: =SUM(D24:D25) -> 611.6 | F26: =SUM(F24:F25) -> 619.5 | H26: -1.275221953
B27: Funded by
B28: Customer deposits7 | D28: 445.1 | F28: 438.3 | H28: 1.551448779
B29: Wholesale funding8 | D29: 119.5 | F29: 137.6 | H29: -13.15406977
D30: =SUM(D28:D29) -> 564.6 | F30: =SUM(F28:F29) -> 575.9 | H30: -1.962146206
B31: Repurchase agreements | D31: 1.1 | F31: 4.3 | H31: -74.41860465
B32: Total equity | D32: 45.9 | F32: 39.3 | H32: 16.79389313
B33: Total funding | D33: =SUM(D30:D32) -> 611.6 | F33: =SUM(F30:F32) -> 619.5 | H33: -1.275221953
A35: 1 | B35: Excludes £4.2 billion (31 December 2013: £0.1 billion) of reverse repurchase agreements.
A36: 2 | B36: Excludes £15.1 billion (31 December 2013: £20.1 billion) of loans and advances to banks within the Insurance business and £2.6 billion (31 December 2013: £0.2 billion) of reverse repurchase agreements.
A37: 3 | B37: Secondary liquidity assets comprise a diversified pool of highly rated unencumbered collateral (including retained issuance).
A38: 4 | B38: Cash balances and balances at central banks – primary are combined in the Group’s balance sheet.
A39: 5 | B39: Other assets and other liabilities primarily include balances in the Group’s Insurance business and the fair value of derivative assets and liabilities.
A40: 6 | B40: Primary liquidity assets are PRA eligible liquid assets including UK Gilts, US Treasuries, Euro AAA government debt, designated multilateral development bank debt and unencumbered cash balances held at central banks.
A41: 7 | B41: Excluding repurchase agreements at 31 December 2013 of £3.0 billion. At 30 June 2014: £nil.
A42: 8 | B42: The Group’s definition of wholesale funding aligns with that used by other international market participants; including interbank deposits, debt securities in issue and subordinated liabilities.

Sheet 58
B1: FUNDING AND LIQUIDITY MANAGEMENT (continued)
B3: Reconciliation of Group funding figure to the balance sheet
B5: At 30 June 2014
D6: Included in funding analysis (above) | F6: Repos | H6: Fair value and other accounting methods | J6: Balance sheet
D7: £bn | F7: £bn | H7: £bn | J7: £bn
B9: Deposits from banks | D9: 10.7 | F9: 1.1 | H9: 0.1 | J9: 11.9
B10: Debt securities in issue | D10: 82.2 | F10: 0 | H10: -4.5 | J10: 77.7
B11: Subordinated liabilities | D11: 26.6 | F11: 0 | H11: -0.9 | J11: 25.7
B12: Total wholesale funding | D12: 119.5 | F12: 1.1
B13: Customer deposits | D13: 445.1 | F13: 0 | H13: 0 | J13: 445.1
B14: Total | D14: 564.6 | F14: 1.1
B16: At 31 December 2013
D17: Included in funding analysis (above) | F17: Repos | H17: Fair value and other accounting methods | J17: Balance sheet
D18: £bn | F18: £bn | H18: £bn | J18: £bn
B20: Deposits from banks | D20: 12.1 | F20: 1.9 | H20: 0 | J20: 14
B21: Debt securities in issue | D21: 91.6 | F21: 0 | H21: -4.5 | J21: 87.1
B22: Subordinated liabilities | D22: 33.9 | F22: 0 | H22: -1.6 | J22: 32.3
B23: Total wholesale funding | D23: 137.6 | F23: 1.9
B24: Customer deposits | D24: 438.3 | F24: 3 | H24: 0 | J24: 441.3
B25: Total | D25: 575.9 | F25: 4.9
B30: Analysis of 2014 total wholesale funding by residual maturity
D32: Less than one month | F32: One to three months | H32: Three to six months | J32: Six to nine months | L32: Nine months to one year | N32: One to two years | P32: Two to five years | R32: More than five years | T32: Total at 30 June 2014 | V32: Total at 31 Dec 2013
D33: £bn | F33: £bn | H33: £bn | J33: £bn | L33: £bn | N33: £bn | P33: £bn | R33: £bn | T33: £bn | V33: £bn
B35: Deposit from banks | D35: 7.6 | F35: 1.4 | H35: 0.5 | J35: 0.2 | L35: 0.1 | N35: 0.2 | P35: 0.2 | R35: 0.5 | T35: 10.7 | V35: 12.1
B36: Debt securities in issue:
B37: Certificates of deposit | D37: 2.1 | F37: 1.6 | H37: 1.3 | J37: 0.9 | L37: 0.9 | N37: 0 | P37: 0 | R37: 0 | T37: 6.8 | V37: 9
B38: Commercial paper | D38: 3.5 | F38: 1.3 | H38: 0.7 | J38: 0.2 | L38: 0 | N38: 0 | P38: 0 | R38: 0 | T38: 5.7 | V38: 4.8
B39: Medium-term notes1 | D39: 0.1 | F39: 0.8 | H39: 1.4 | J39: 1.6 | L39: 1.1 | N39: 6.3 | P39: 6.2 | R39: 9 | T39: 26.5 | V39: 29.1
B40: Covered bonds | D40: 0 | F40: 0.9 | H40: 2 | J40: 1 | L40: 0 | N40: 2.7 | P40: 9.2 | R40: 12.1 | T40: 27.9 | V40: 29.4
B41: Securitisation | D41: 0.1 | F41: 0 | H41: 3.1 | J41: 1.4 | L41: 2 | N41: 5.6 | P41: 2.4 | R41: 0.7 | T41: 15.3 | V41: 19.3
D42: 5.8 | F42: 4.6 | H42: 8.5 | J42: 5.1 | L42: 4 | N42: 14.6 | P42: 17.8 | R42: 21.8 | T42: 82.2 | V42: 91.6
B43: Subordinated liabilities | D43: 0.6 | F43: 0 | H43: 0.6 | J43: 1.2 | L43: 1.3 | N43: 1.3 | P43: 6.1 | R43: 15.5 | T43: 26.6 | V43: 33.9
B44: Total wholesale funding2 | D44: 14 | F44: 6 | H44: 9.6 | J44: 6.5 | L44: 5.4 | N44: 16.1 | P44: 24.1 | R44: 37.8 | T44: 119.5 | V44: 137.6
A46: 1 | B46: Medium-term notes include funding from the National Loan Guarantee Scheme (30 June 2014: £1.4 billion; 31 December 2013: £1.4 billion).
A47: 2 | B47: The Group’s definition of wholesale funding aligns with that used by other international market participants; including interbank deposits, debt securities in issue and subordinated liabilities.

Sheet 59
B1: FUNDING AND LIQUIDITY MANAGEMENT (continued)
B3: Analysis of 2014 term issuance
D5: Sterling | F5: US Dollar | H5: Euro | J5: Other currencies | L5: Total
D6: £bn | F6: £bn | H6: £bn | J6: £bn | L6: £bn
B7: Securitisation | D7: 0.7 | F7: 0 | H7: 0 | J7: 0 | L7: 0.7
B8: Medium-term notes | D8: 0 | F8: 0 | H8: 0 | J8: 0 | L8: 0
B9: Covered bonds | D9: 1 | F9: 0 | H9: 0.8 | J9: 0 | L9: 1.8
B10: Private placements1 | D10: 0.3 | F10: 0.5 | H10: 0.4 | J10: 0.2 | L10: 1.4
B11: Total issuance | D11: 2 | F11: 0.5 | H11: 1.2 | J11: 0.2 | L11: 3.9
A13: 1 | B13: Private placements include structured bonds and term repurchase agreements (repos).
B19: Encumbered assets
D21: Notes issues | F21: Assets encumbered
D22: £bn | F22: £bn
B23: At 30 June 2014
B24: Securitisations1 | D24: 14.6 | F24: 26.7
B25: Covered bonds2 | D25: 29.4 | F25: 42.5
B26: Total | D26: 44 | F26: 69.2
B28: At 31 December 2013
B29: Securitisations1 | D29: 18.6 | F29: 31.6
B30: Covered bonds2 | D30: 30.7 | F30: 49.6
B31: Total | D31: 49.3 | F31: 81.2
A34: 1 | B34: In addition the Group retained internally £38.9 billion (31 December 2013: £38.3 billion) of notes secured with £50.4 billion (31 December 2013: £49.3 billion) of assets.
A35: 2 | B35: In addition the Group retained internally £7.0 billion (31 December 2013: £7.6 billion) of notes secured with £11.7 billion (31 December 2013: £12.5 billion) of assets.

Sheet 60
B1: FUNDING AND LIQUIDITY MANAGEMENT (continued)
B3: Primary liquidity
D4: At 30 June | F4: At 31 Dec | H4: Average | J4: Average
D5: 2014 | F5: 2013 | H5: 2014 | J5: 2013
D6: £bn | F6: £bn | H6: £bn | J6: £bn
B8: Central bank cash deposits | D8: 47.4 | F8: 46 | H8: 64.7 | J8: 69.4
B9: Government bonds/MDB bonds1 | D9: 44.9 | F9: 43.3 | H9: 42.4 | J9: 28.2
B10: Total | D10: =SUM(D8:D9) -> 92.3 | F10: =SUM(F8:F9) -> 89.3 | H10: =SUM(H8:H9) -> 107.1 | J10: =SUM(J8:J9) -> 97.6
B12: Secondary liquidity
D13: At 30 June | F13: At 31 Dec | H13: Average | J13: Average
D14: 2014 | F14: 2013 | H14: 2014 | J14: 2013
D15: £bn | F15: £bn | H15: £bn | J15: £bn
B17: High-quality ABS/covered bonds2 | D17: 7 | F17: 1.4 | H17: 2.8 | J17: 2
B18: Credit institution bonds2 | D18: 1.1 | F18: 0.4 | H18: 1.4 | J18: 1.2
B19: Corporate bonds2 | D19: 0.3 | F19: 0.1 | H19: 0.2 | J19: 0.1
B20: Own securities (retained issuance) | D20: 25 | F20: 22.1 | H20: 23 | J20: 33.3
B21: Other securities | D21: 6.5 | F21: 4.3 | H21: 5 | J21: 4.8
B22: Other3 | D22: 79.3 | F22: 77.1 | H22: 76.2 | J22: 75.2
B23: Total | D23: =SUM(D17:D22) -> 119.2 | F23: =SUM(F17:F22) -> 105.4 | H23: =SUM(H17:H22) -> 108.6 | J23: =SUM(J17:J22) -> 116.6
B25: Total liquidity | D25: =+D23+D10 -> 211.5 | F25: =+F23+F10 -> 194.7
A28: 1 | B28: Designated multilateral development bank (MDB).
A29: 2 | B29: Assets rated A- or above.
A30: 3 | B30: Includes other central bank eligible assets.

Sheet 62
B1: CAPITAL MANAGEMENT (continued)
E3: PRA transitional | I3: Fully loaded position
B4: Capital resources
E5: At 30 June | G5: At 31 Dec | I5: At 30 June | K5: At 31 Dec
E6: 2014 | G6: 20131,2 | I6: 2014 | K6: 20132
E7: £m | G7: £m | I7: £m | K7: £m
B9: Common equity tier 1
B10: Shareholders’ equity | E10: 39601 | G10: 39191 | I10: 39601 | K10: =G10 -> 39191 | L10: =IF(IF(H10="",TRUE,IF(CODE(H10)=150,TRUE,FALSE)),"",VALUE(SUBSTITUTE(H10,CHAR(160),""))) -> 
C11: Deconsolidation of insurance entities | E11: -1511 | G11: -1367 | I11: -1511 | K11: -1367
C12: Adjustment for own credit | E12: 165 | G12: 185 | I12: 165 | K12: 185
B13: Regulatory adjustments to non-controlling interests | C13: Cash flow hedging reserve | E13: 705 | G13: 1055 | I13: 705 | K13: 1055
B14: Defined benefit pension adjustment | C14: Other adjustments | E14: 535 | G14: 133 | I14: 535 | K14: 133
E15: =SUM(E10:E14) -> 39495 | G15: =SUM(G10:G14) -> 39197 | I15: =SUM(I10:I14) -> 39495 | K15: 39197
B18: less: deductions from common equity tier 1
B19: Goodwill and other intangible assets | E19: -1966 | G19: -1979 | I19: -1966 | K19: -1979
B20: Excess of expected losses over impairment provisions and value adjustments | E20: -714 | G20: -866 | I20: -714 | K20: -866
B21: Removal of defined benefit pension surplus | E21: -274 | G21: -78 | I21: -274 | K21: -78
B22: Securitisation deductions | E22: -148 | G22: -141 | I22: -148 | K22: -141
B23: Significant investments | E23: -2787 | G23: -2890 | I23: -2959 | K23: -3090
B24: Deferred tax assets | E24: -4934 | G24: -5025 | I24: -5009 | K24: -5118
B25: Common equity tier 1 capital | E25: =SUM(E19:E24)+E15 -> 28672 | G25: =SUM(G19:G24)+G15 -> 28218 | I25: =SUM(I19:I24)+I15 -> 28425 | K25: =SUM(K19:K24)+K15 -> 27925
B27: Additional tier 1
B28: Additional tier 1 instruments | E28: 9477 | G28: 4486 | I28: 5329 | K28: 0
B29: less: deductions from tier 1
B30: Significant investments | E30: -677 | G30: -677 | I30: 0 | K30: 0
B31: Total tier 1 capital | E31: =+E25+E28+E30 -> 37472 | G31: =+G25+G28+G30 -> 32027 | I31: =+I25+I28+I30 -> 33754 | K31: =+K25+K28+K30 -> 27925
B33: Tier 2
B34: Tier 2 instruments | E34: 13639 | G34: 19870 | I34: 10623 | K34: 15636
B35: Eligible provisions | E35: 522 | G35: 349 | I35: 522 | K35: 349
B36: Less: deductions from tier 2
B37: Significant investments | E37: -1015 | G37: -1015 | I37: -1692 | K37: -1692
B38: Total capital resources | E38: =+E31+E34+E35+E37 -> 50618 | G38: =+G31+G34+G35+G37 -> 51231 | I38: =+I31+I34+I35+I37 -> 43207 | K38: =+K31+K34+K35+K37 -> 42218
B41: Risk-weighted assets | E41: 257370 | G41: 272641 | I41: 256752 | K41: 271908
B43: Common equity tier 1 capital ratio | E43: 0.111 | G43: 0.103 | I43: 0.111 | K43: 0.103
B44: Tier 1 capital ratio | E44: 0.146 | G44: 0.117 | I44: 0.131 | K44: 0.103
B45: Total capital ratio | E45: 0.197 | G45: 0.188 | I45: 0.168 | K45: 0.155
A50: 1 | B50: 31 December 2013 comparatives reflect PRA transitional rules as at 1 January 2014.
A51: 2 | B51: 31 December 2013 comparatives have been restated to include the pro forma benefit of the sales of Heidelberger Leben, Scottish Widows Investment Partnership and the Group’s 50 per cent stake in Sainsbury’s Bank. 31 December 2013 common equity tier 1 ratios excluding the benefit of these sales were 10.0 per cent fully loaded and 10.1 per cent on transitional rules, while RWAs on transitional rules were £272.1 billion.

Sheet 63
B1: CAPITAL MANAGEMENT (continued)
D4: Common Equity Tier 1 | F4: Additional Tier 1 | H4: Tier 2 | J4: Total
D5: £m | F5: £m | H5: £m | J5: £m
B7: At 31 December 20131 | D7: 28218 | F7: 3809 | H7: 19204 | J7: 51231
B8: Profit attributable to ordinary shareholders | D8: 574 | J8: 574
B9: Adjustment to above re December 13 pro forma | D9: -202 | J9: -202
B10: Pension movements:
B11: Deduction of pension asset | D11: -196 | J11: -196
B12: Movement through other comprehensive income | D12: -479 | J12: -479
B13: Available-for-sale reserve | D13: 423 | J13: 423
B14: Deferred tax asset | D14: 91 | J14: 91
B15: Goodwill and intangible assets deductions | D15: 13 | J15: 13
B16: Excess of expected losses over impairment provisions and value adjustments | D16: 152 | J16: 152
B17: Significant investment deduction | D17: 103 | J17: 103
B18: Eligible provisions | H18: 173 | J18: 173
B19: Subordinated debt movements:
B20: Restucturing to ensure CRD IV compliance | F20: 5329 | H20: -4006 | J20: 1323
B21: Foreign exchange | F21: -116 | H21: -423 | J21: -539
B22: Repurchases, redemptions and other | F22: -222 | H22: -1802 | J22: -2024
B23: Other movements | D23: -25 | J23: -25
B24: At 30 June 2014 | D24: 28672 | F24: 8800 | H24: 13146 | J24: 50618
A28: 1 | B28: 31 December 2013 comparatives have been restated in line with CRD IV rules as at 1 January 2014 and are pro forma including the benefit of the sales of Heidelberger Leben, Scottish Widows Investment Partnership and the Group’s 50 per cent stake in Sainsbury’s Bank.

Sheet 64-65
B1: CAPITAL MANAGEMENT (continued)
B3: Risk-weighted assets
D4: PRA Transitional rules | H4: Prevailing rules
D5: At 30 June | F5: At 31 Dec | H5: At 31 Dec
D6: 2014 | F6: 2013 | H6: 2013
B7: Divisional analysis of risk-weighted assets: | D7: £m | F7: £m | H7: £m
B9: Retail | D9: 70800 | F9: 72948 | H9: 73063
B10: Consumer Finance | D10: 21524 | F10: 20136 | H10: 20136
B11: Commercial Banking | D11: 114023 | F11: 123951 | H11: 120843
B12: Group Operations and Central items | D12: 10719 | F12: 7743 | H12: 13316
B13: TSB1 | D13: 4806 | F13: 5591 | H13: 5800
B14: Run-off | D14: 24221 | F14: 30569 | H14: 30692
B15: Underlying risk-weighted assets | D15: 246093 | F15: 260938 | H15: 263850
B16: Threshold risk-weighted assets | D16: 11277 | F16: 11154 | H16: 0
B17: Total risk-weighted assets | D17: 257370 | F17: 272092 | H17: 263850
B18: Movement to fully loaded risk-weighted assets | D18: -618 | F18: -1014 | H18: 0
B19: Fully loaded CRD IV risk-weighted assets | D19: 256752 | F19: 271078 | H19: 263850
B22: Risk type analysis of risk-weighted assets:
B23: Foundation Internal Ratings Based (IRB) Approach | D23: 79274 | F23: 84882 | H23: 82870
B24: Retail IRB Approach | D24: 78796 | F24: 83815 | H24: 85139
B25: Other IRB Approach | D25: 11590 | F25: 9526 | H25: 9221
B26: IRB approach | D26: 169660 | F26: 178223 | H26: 177230
B27: Standardised approach | D27: 31856 | F27: 33819 | H27: 41150
B28: Credit risk | D28: 201516 | F28: 212042 | H28: 218380
B29: Counterparty credit risk | D29: 10987 | F29: 11220 | H29: 7794
B30: Operational risk | D30: 26594 | F30: 26594 | H30: 26594
B31: Market risk | D31: 6996 | F31: 11082 | H31: 11082
B32: Underlying risk-weighted assets | D32: 246093 | F32: 260938 | H32: 263850
B33: Threshold risk-weighted assets | D33: 11277 | F33: 11154 | H33: 0
B34: Total risk-weighted assets | D34: 257370 | F34: 272092 | H34: 263850
B35: Movement to fully loaded risk-weighted assets | D35: -618 | F35: -1014 | H35: 0
B36: Fully loaded CRD IV risk-weighted assets | D36: 256752 | F36: 271078 | H36: 263850
B38: Pro forma PRA transitional rules risk-weighted assets | F38: 272641
B39: Pro forma fully loaded risk-weighted assets | F39: 271908
A41: 1 | B41: TSB risk-weighted assets are on a Lloyds Banking Group reporting basis and differ to those reported by TSB as a standalone regulated entity.
B45: Risk weighted asset movement by key driver | D45: Credit risk | F45: Counter party credit risk | H45: Market risk | J45: Operational risk | L45: Total
D46: £m | F46: £m | H46: £m | J46: £m | L46: £m
B48: Risk-weighted assets at 31 December 2013 1 | D48: 212042 | F48: 11220 | H48: 11082 | J48: 26594 | L48: 260938
B49: Management of balance sheet | D49: -107 | F49: -534 | H49: 0 | J49: 0 | L49: -641
B50: Disposals | D50: -4598 | F50: -106 | H50: 0 | J50: 0 | L50: -4704
B51: External economic factors | D51: -6381 | F51: -54 | H51: -867 | J51: 0 | L51: -7302
B52: Model and methodology changes | D52: 421 | F52: 461 | H52: -3219 | J52: 0 | L52: -2337
B53: Regulatory policy change | D53: 0 | F53: 0 | H53: 0 | J53: 0 | L53: 0
B54: Other | D54: 139 | F54: 0 | H54: 0 | J54: 0 | L54: 139
B55: Risk-weighted assets | D55: 201516 | F55: 10987 | H55: 6996 | J55: 26594 | L55: 246093
B56: Threshold risk-weighted assets | L56: 11277
B57: Total risk-weighted assets | L57: 257370
B58: Movement to fully loaded risk-weighted assets | L58: -618
B59: Fully loaded CRD IV risk-weighted assets at 30 June 2014 | L59: 256752
A62: 1 | B62: 31 December 2013 comparatives have been restated in line with CRD IV rules as at 1 January 2014.

Sheet 67
B1: CAPITAL MANAGEMENT (continued)
B2: At 30 June 2014 | E2: Fully loaded
F3: £m
B4: Basel III rules for leverage ratio
B5: Total tier 1 capital for leverage ratio1
B6: Common equity tier 1 capital | F6: 28425 | O6: =IF(IF(I6="",TRUE,IF(CODE(I6)=150,TRUE,FALSE)),"",VALUE(SUBSTITUTE(I6,CHAR(160),""))) -> 
B7: Tier 1 subordinated debt | F7: 5329
B8: Total tier 1 capital | F8: =SUM(F6:F7) -> 33754
B10: Exposure measure2
B11: Total statutory balance sheet assets | F11: 843940
B12: Deconsolidation of assets related to Insurance entities | F12: -145106
B13: Investment in Insurance entities | F13: 4666
B14: Removal of accounting value for derivatives and securities financing transactions | F14: -67467
B15: Exposure measure for derivatives | F15: 24135
B16: Exposure measure for securities financing transactions | F16: 36619
B17: Off-balance sheet items | F17: 57389
B18: Other regulatory adjustments | F18: -9890
B19: Total exposures | F19: =SUM(F11:F18) -> 744286
B21: Leverage ratio | F21: 0.045
B22: Pro forma leverage ratio at 31 December 2013 | F22: 0.038
B24: CRD IV rules for leverage ratio
B25: Leverage ratio | F25: 0.042
B26: Pro forma leverage ratio at 31 December 2013 | F26: 0.034
A29: 1 | B29: Tier 1 capital is calculated in accordance with CRD IV rules.
A30: 2 | B30: As required by the PRA, the exposure measure has been estimated in accordance with the revised Basel III leverage ratio framework issued in January 2014, as interpreted through the March 2014 Basel III Quantitative Impact Study instructions and related guidance.

Sheet Sheet1
